Workbook

Sheet LDV,LDT1
A1: Example Template - Federal Tier 3 Banking & Trading LDV/LDT1 Vehicle Table for One Model Year
A2: Manufacturer: ___________________________ | L2: Date: _____________
A4: Purpose and Scope of this Guidance Document
A5: This document was prepared by EPA's Office of Transportation and Air Quality (OTAQ). It is one of several intended to aid regulated parties in reporting Tier 3 and Cold NMHC Averaging, Banking and Trading (AB&T) information and calculating AB&T fleet average credits for light-duty vehicles and certain heavy-duty class 2b and 3 vehicles, ref. 40 CFR 86.1862-04(c). It contains EPA's recommended format for manufacturers to report to EPA their end-of-year Tier 3 AB&T calculations, credits and other information with respect to the implementation of the AB&T provisions of the EPA Tier 3 final rule (79 FR 23414, April 28, 2014) as amended (80 FR 9078, February 19, 2015; 80 FR 26463, May 8, 2015); ref. 40 CFR Parts 85, 86, 600, 1065, 1066. Use of this document is purely optional. This document does not in any way alter or waive the requirements in EPA regulations. Although the calculations and formulas provided in this document are intended to assist manufacturers in the implementation of EPA regulations, this document does not establish or change the legal rights or obligations of manufacturers or others in complying with EPA regulations, including 40 CFR 86.1862-04(c). If an error or other discrepancy is found in this document, including the calculation formulas, please contact your EPA certification team member or Dave Good at (734) 214-4450 or by email at good.david@epa.gov. The regulations take precedence.
A7: OMB Control Number 2060-0104 Expires 3-31-2020 | F7: 120K Averaging Set
F8: NOTE: This 120K averaging set is not expected to be used by many manufacturers (if any). See 40 CFR 86.1805-17(d) and the preamble discussion of the Tier 3 final rule at 79 FR 23450-51, 23475, April 28, 2014; or obtain prior EPA approval before using the 120K averaging set in this spreadsheet. | L8: 150K Averaging Set
F9: Emission Standard | G9: Total Production | H9: Fleet average compliance | I9: Fleet average standard | J9: Credits or Debits | L9: Emission Standard | M9: Total Production | N9: Fleet average compliance | O9: Fleet average standard | P9: Credits or Debits
A10: Instructions | H10: g/mi | I10: g/mi | J10: g/mi | N10: g/mi | O10: g/mi | P10: g/mi
F11: FTP (NMOG+NOx) | G11: =SUMIF(E18:E487,120,J18:J487) -> 250000 | H11: =astm(SUMIF(E18:E487,120,P18:P487),3) -> 0.099 | I11: =IF(C14="Yes",IF(C12<2022,0.125,0.051),IF(C12=2015,0.1,IF(C12=2016,0.093,IF(C12=2017,0.073,IF(C12=2018,0.067,IF(C12=2019,0.061,IF(C12=2020,0.055,IF(C12=2021,0.049,IF(C12=2022,0.043,IF(C12=2023,0.037,IF(C12=2024,0.031,IF(C12>=2025,0.026,"n/a")))))))))))) -> 0.073 | J11: =astm(((I11-H11)*$G$11),0) -> -6500 | L11: FTP (NMOG+NOx) | M11: =SUMIF(E18:E487,"150",J18:J487) -> 283840 | N11: =astm(SUMIF(E18:E487,150,P18:P487),3) -> 0.052 | O11: =IF(C14="Yes",IF(C12<2022,0.125,0.051),IF(C12=2015,0.1,IF(C12=2016,0.093,IF(C12=2017,0.086,IF(C12=2018,0.079,IF(C12=2019,0.072,IF(C12=2020,0.065,IF(C12=2021,0.058,IF(C12=2022,0.051,IF(C12=2023,0.044,IF(C12=2024,0.037,IF(C12>=2025,0.03,"n/a")))))))))))) -> 0.086 | P11: =astm(((O11-N11)*$M$11),0) -> 9651
A12: Select Model Year: | C12: 2017 | F12: SFTP (NMOG+NOx) | G12: =SUMIF(F18:F487,120,J18:J487) -> 210000 | H12: =astm(SUMIF(F18:F486,120,Q18:Q487),3) ->  | I12: =IF(C12=2015,0.14,IF(C12=2016,0.11,IF(C12=2017,0.103,IF(C12=2018,0.097,IF(C12=2019,0.09,IF(C12=2020,0.083,IF(C12=2021,0.077,IF(C12=2022,0.07,IF(C12=2023,0.063,IF(C12=2024,0.057,IF(C12>=2025,0.05,"n/a"))))))))))) -> 0.103 | J12: =astm(((I12-H12)*$G$12),0) ->  | L12: SFTP (NMOG+NOx) | M12: SFTP 150K Fleet Average Credits or Debits are calculated for all LDVs, LDTs, MDPVs on the "LDT2,HLDT,MDPV" Tab.
A14: Small Volume under 86.1811-17(h)(1)? | C14: No
A16: Test Group | B16: Bin (NMOG + NOx) | C16: SFTP NMOG + NOx FEL standard | D16: Test Group Useful Life Miles | E16: FTP Useful Life of Averaging Set | F16: SFTP Useful Life of Averaging Set | G16: 150K Warranty per §86.1811-17(b)(4)(ii) | H16: 50-State Direct Ozone Reduction (DOR) (LEV 3 regs) | I16: If yes to DOR, CARB Approved Level | J16: Production (50-State) | K16: Comments | L16: FTP NMOG + NOx standard [Column B Bin x 0.001] | M16: Actual FTP NMOG + NOx Standard Level [Derived from columns G, H, I, L] | N16: FTP Production x Bin [Columns J x M] | O16: SFTP Production x Bin [Columns J x C] | P16: FTP Intermediate calculation | Q16: SFTP Intermediate calculation
C17: g/mi | D17: x1000 Mi | E17: (x 1000 Miles) | F17: (x 1000 Miles) | G17: Y or N | H17: Y or N | I17: g/mi | J17: # of Units | L17: g/mi | M17: g/mi | N17: g/mi | O17: g/mi
A18: A | B18: 160 | C18: 0.16 | D18: 120 | E18: 150 | F18: 150 | G18: Yes | H18: No | J18: 39458 | K18: Bin 160 120K Useful Life (included in 150K FTP & SFTP Averaging sets); [Formatted comments field cells to "wrap text" as shown in example comments for this cell.] | L18: =IF(A18="","",IF(B18=160,0.16,IF(B18=125,0.125,IF(B18=110,0.11,IF(B18=85,0.085,IF(B18="FED SULEV30",0.03,IF(B18=70,0.07,IF(B18=50,0.05,IF(B18=30,0.03,IF(B18=20,0.02,IF(B18=0,0,"n/a"))))))))))) -> 0.16 | M18: =IF(L18="","",MAX(0,L18-IF(G18="Yes",0.005,0))-IF(H18="Yes",I18,0)) -> 0.155 | N18: =IF(A18="","",IF(OR(B18="",C18=""),"FIX BIN",J18*M18)) -> 6115.99 | O18: =IF(A18="","",IF(OR(B18="",C18=""),"FIX BIN",IFERROR(J18*C18,""))) -> 6313.28 | P18: =IF(A18="","",IF(OR(B18="",C18=""),ERROR.TYPE(3),IFERROR(N18/(IF(E18=120,$G$11,$M$11)),""))) -> 0.02154731539 | Q18: =IF(A18="","",IF(OR(B18="",C18=""),ERROR.TYPE(3),IFERROR(O18/(IF(F18=120,$G$12,'LDT2,HLDT,MDPV'!$G$11)),""))) -> 0.02389194794
A19: B | B19: 125 | C19: 0.13 | D19: 120 | E19: 150 | F19: 150 | G19: No | H19: No | J19: 20382 | L19: 0.125 | M19: 0.125 | N19: 2547.75 | O19: 2649.66 | P19: 0.00897600761 | Q19: =IF(A19="","",IF(OR(B19="",C19=""),ERROR.TYPE(3),IFERROR(O19/(IF(F19=120,$G$12,'LDT2,HLDT,MDPV'!$G$11)),""))) -> 0.01002736118
A20: C | B20: 20 | C20: 0.02 | D20: 150 | E20: 150 | F20: 150 | G20: Yes | H20: Yes | I20: 0.005 | J20: 45000 | L20: 0.02 | M20: 0.01 | N20: 450 | O20: 900 | P20: 0.001585400225 | Q20: =IF(A20="","",IF(OR(B20="",C20=""),ERROR.TYPE(3),IFERROR(O20/(IF(F20=120,$G$12,'LDT2,HLDT,MDPV'!$G$11)),""))) -> 0.003405955882
A21: D | B21: 50 | C21: 0.05 | D21: 150 | E21: 150 | F21: 150 | G21: No | H21: No | J21: 79000 | L21: 0.05 | M21: 0.05 | N21: 3950 | O21: 3950 | P21: 0.01391629087 | Q21: =IF(A21="","",IF(OR(B21="",C21=""),ERROR.TYPE(3),IFERROR(O21/(IF(F21=120,$G$12,'LDT2,HLDT,MDPV'!$G$11)),""))) -> 0.01494836192
A22: E | B22: 0 | C22: 0 | D22: 150 | E22: 150 | F22: 150 | G22: Yes | H22: No | J22: 10000 | L22: 0 | M22: 0 | N22: 0 | O22: 0 | P22: 0 | Q22: =IF(A22="","",IF(OR(B22="",C22=""),ERROR.TYPE(3),IFERROR(O22/(IF(F22=120,$G$12,'LDT2,HLDT,MDPV'!$G$11)),""))) -> 0
A23: F | B23: 20 | C23: N/A | D23: 150 | E23: 150 | F23: N/A | G23: No | H23: No | J23: 90000 | K23: Meets CARB Stand alone SFTP standards ref. 86.1811-17(b)(8)(ii)(C) | L23: 0.02 | M23: 0.02 | N23: 1800 | P23: 0.006341600902 | Q23: =IF(A23="","",IF(OR(B23="",C23=""),ERROR.TYPE(3),IFERROR(O23/(IF(F23=120,$G$12,'LDT2,HLDT,MDPV'!$G$11)),""))) -> 
A24: G | B24: 160 | C24: 0.14 | D24: 120 | E24: 120 | F24: 120 | G24: No | H24: No | J24: 120000 | L24: 0.16 | M24: 0.16 | N24: 19200 | O24: 16800 | P24: 0.0768 | Q24: =IF(A24="","",IF(OR(B24="",C24=""),ERROR.TYPE(3),IFERROR(O24/(IF(F24=120,$G$12,'LDT2,HLDT,MDPV'!$G$11)),""))) -> 0.08
A25: H | B25: 30 | C25: 0.14 | D25: 120 | E25: 120 | F25: 120 | G25: No | H25: No | J25: 90000 | L25: 0.03 | M25: 0.03 | N25: 2700 | O25: 12600 | P25: 0.0108 | Q25: =IF(A25="","",IF(OR(B25="",C25=""),ERROR.TYPE(3),IFERROR(O25/(IF(F25=120,$G$12,'LDT2,HLDT,MDPV'!$G$11)),""))) -> 0.06
A26: I | B26: 70 | C26: N/A | D26: 120 | E26: 120 | F26: N/A | G26: No | H26: No | J26: 40000 | K26: Meets CARB Stand alone SFTP standards ref. 86.1811-17(b)(8)(ii)(C) | L26: 0.07 | M26: 0.07 | N26: 2800 | P26: 0.0112 | Q26: =IF(A26="","",IF(OR(B26="",C26=""),ERROR.TYPE(3),IFERROR(O26/(IF(F26=120,$G$12,'LDT2,HLDT,MDPV'!$G$11)),""))) -> 
Q27: =IF(A27="","",IF(OR(B27="",C27=""),ERROR.TYPE(3),IFERROR(O27/(IF(F27=120,$G$12,'LDT2,HLDT,MDPV'!$G$11)),""))) -> 
Q28: =IF(A28="","",IF(OR(B28="",C28=""),ERROR.TYPE(3),IFERROR(O28/(IF(F28=120,$G$12,'LDT2,HLDT,MDPV'!$G$11)),""))) -> 
Q29: =IF(A29="","",IF(OR(B29="",C29=""),ERROR.TYPE(3),IFERROR(O29/(IF(F29=120,$G$12,'LDT2,HLDT,MDPV'!$G$11)),""))) -> 
Q30: =IF(A30="","",IF(OR(B30="",C30=""),ERROR.TYPE(3),IFERROR(O30/(IF(F30=120,$G$12,'LDT2,HLDT,MDPV'!$G$11)),""))) -> 
Q31: =IF(A31="","",IF(OR(B31="",C31=""),ERROR.TYPE(3),IFERROR(O31/(IF(F31=120,$G$12,'LDT2,HLDT,MDPV'!$G$11)),""))) -> 
Q32: =IF(A32="","",IF(OR(B32="",C32=""),ERROR.TYPE(3),IFERROR(O32/(IF(F32=120,$G$12,'LDT2,HLDT,MDPV'!$G$11)),""))) -> 
Q33: =IF(A33="","",IF(OR(B33="",C33=""),ERROR.TYPE(3),IFERROR(O33/(IF(F33=120,$G$12,'LDT2,HLDT,MDPV'!$G$11)),""))) -> 
Q34: =IF(A34="","",IF(OR(B34="",C34=""),ERROR.TYPE(3),IFERROR(O34/(IF(F34=120,$G$12,'LDT2,HLDT,MDPV'!$G$11)),""))) -> 
Q35: =IF(A35="","",IF(OR(B35="",C35=""),ERROR.TYPE(3),IFERROR(O35/(IF(F35=120,$G$12,'LDT2,HLDT,MDPV'!$G$11)),""))) -> 
Q36: =IF(A36="","",IF(OR(B36="",C36=""),ERROR.TYPE(3),IFERROR(O36/(IF(F36=120,$G$12,'LDT2,HLDT,MDPV'!$G$11)),""))) -> 
Q37: =IF(A37="","",IF(OR(B37="",C37=""),ERROR.TYPE(3),IFERROR(O37/(IF(F37=120,$G$12,'LDT2,HLDT,MDPV'!$G$11)),""))) -> 
Q38: =IF(A38="","",IF(OR(B38="",C38=""),ERROR.TYPE(3),IFERROR(O38/(IF(F38=120,$G$12,'LDT2,HLDT,MDPV'!$G$11)),""))) -> 
Q39: =IF(A39="","",IF(OR(B39="",C39=""),ERROR.TYPE(3),IFERROR(O39/(IF(F39=120,$G$12,'LDT2,HLDT,MDPV'!$G$11)),""))) -> 
Q40: =IF(A40="","",IF(OR(B40="",C40=""),ERROR.TYPE(3),IFERROR(O40/(IF(F40=120,$G$12,'LDT2,HLDT,MDPV'!$G$11)),""))) -> 
Q41: =IF(A41="","",IF(OR(B41="",C41=""),ERROR.TYPE(3),IFERROR(O41/(IF(F41=120,$G$12,'LDT2,HLDT,MDPV'!$G$11)),""))) -> 
Q42: =IF(A42="","",IF(OR(B42="",C42=""),ERROR.TYPE(3),IFERROR(O42/(IF(F42=120,$G$12,'LDT2,HLDT,MDPV'!$G$11)),""))) -> 
Q43: =IF(A43="","",IF(OR(B43="",C43=""),ERROR.TYPE(3),IFERROR(O43/(IF(F43=120,$G$12,'LDT2,HLDT,MDPV'!$G$11)),""))) -> 
Q44: =IF(A44="","",IF(OR(B44="",C44=""),ERROR.TYPE(3),IFERROR(O44/(IF(F44=120,$G$12,'LDT2,HLDT,MDPV'!$G$11)),""))) -> 
Q45: =IF(A45="","",IF(OR(B45="",C45=""),ERROR.TYPE(3),IFERROR(O45/(IF(F45=120,$G$12,'LDT2,HLDT,MDPV'!$G$11)),""))) -> 
Q46: =IF(A46="","",IF(OR(B46="",C46=""),ERROR.TYPE(3),IFERROR(O46/(IF(F46=120,$G$12,'LDT2,HLDT,MDPV'!$G$11)),""))) -> 
Q47: =IF(A47="","",IF(OR(B47="",C47=""),ERROR.TYPE(3),IFERROR(O47/(IF(F47=120,$G$12,'LDT2,HLDT,MDPV'!$G$11)),""))) -> 
Q48: =IF(A48="","",IF(OR(B48="",C48=""),ERROR.TYPE(3),IFERROR(O48/(IF(F48=120,$G$12,'LDT2,HLDT,MDPV'!$G$11)),""))) -> 
Q49: =IF(A49="","",IF(OR(B49="",C49=""),ERROR.TYPE(3),IFERROR(O49/(IF(F49=120,$G$12,'LDT2,HLDT,MDPV'!$G$11)),""))) -> 
Q50: =IF(A50="","",IF(OR(B50="",C50=""),ERROR.TYPE(3),IFERROR(O50/(IF(F50=120,$G$12,'LDT2,HLDT,MDPV'!$G$11)),""))) -> 
Q51: =IF(A51="","",IF(OR(B51="",C51=""),ERROR.TYPE(3),IFERROR(O51/(IF(F51=120,$G$12,'LDT2,HLDT,MDPV'!$G$11)),""))) -> 
Q52: =IF(A52="","",IF(OR(B52="",C52=""),ERROR.TYPE(3),IFERROR(O52/(IF(F52=120,$G$12,'LDT2,HLDT,MDPV'!$G$11)),""))) -> 
Q53: =IF(A53="","",IF(OR(B53="",C53=""),ERROR.TYPE(3),IFERROR(O53/(IF(F53=120,$G$12,'LDT2,HLDT,MDPV'!$G$11)),""))) -> 
Q54: =IF(A54="","",IF(OR(B54="",C54=""),ERROR.TYPE(3),IFERROR(O54/(IF(F54=120,$G$12,'LDT2,HLDT,MDPV'!$G$11)),""))) -> 
Q55: =IF(A55="","",IF(OR(B55="",C55=""),ERROR.TYPE(3),IFERROR(O55/(IF(F55=120,$G$12,'LDT2,HLDT,MDPV'!$G$11)),""))) -> 
Q56: =IF(A56="","",IF(OR(B56="",C56=""),ERROR.TYPE(3),IFERROR(O56/(IF(F56=120,$G$12,'LDT2,HLDT,MDPV'!$G$11)),""))) -> 
Q57: =IF(A57="","",IF(OR(B57="",C57=""),ERROR.TYPE(3),IFERROR(O57/(IF(F57=120,$G$12,'LDT2,HLDT,MDPV'!$G$11)),""))) -> 
Q58: =IF(A58="","",IF(OR(B58="",C58=""),ERROR.TYPE(3),IFERROR(O58/(IF(F58=120,$G$12,'LDT2,HLDT,MDPV'!$G$11)),""))) -> 
Q59: =IF(A59="","",IF(OR(B59="",C59=""),ERROR.TYPE(3),IFERROR(O59/(IF(F59=120,$G$12,'LDT2,HLDT,MDPV'!$G$11)),""))) -> 
Q60: =IF(A60="","",IF(OR(B60="",C60=""),ERROR.TYPE(3),IFERROR(O60/(IF(F60=120,$G$12,'LDT2,HLDT,MDPV'!$G$11)),""))) -> 
Q61: =IF(A61="","",IF(OR(B61="",C61=""),ERROR.TYPE(3),IFERROR(O61/(IF(F61=120,$G$12,'LDT2,HLDT,MDPV'!$G$11)),""))) -> 
Q62: =IF(A62="","",IF(OR(B62="",C62=""),ERROR.TYPE(3),IFERROR(O62/(IF(F62=120,$G$12,'LDT2,HLDT,MDPV'!$G$11)),""))) -> 
Q63: =IF(A63="","",IF(OR(B63="",C63=""),ERROR.TYPE(3),IFERROR(O63/(IF(F63=120,$G$12,'LDT2,HLDT,MDPV'!$G$11)),""))) -> 
Q64: =IF(A64="","",IF(OR(B64="",C64=""),ERROR.TYPE(3),IFERROR(O64/(IF(F64=120,$G$12,'LDT2,HLDT,MDPV'!$G$11)),""))) -> 
Q65: =IF(A65="","",IF(OR(B65="",C65=""),ERROR.TYPE(3),IFERROR(O65/(IF(F65=120,$G$12,'LDT2,HLDT,MDPV'!$G$11)),""))) -> 
Q66: =IF(A66="","",IF(OR(B66="",C66=""),ERROR.TYPE(3),IFERROR(O66/(IF(F66=120,$G$12,'LDT2,HLDT,MDPV'!$G$11)),""))) -> 
Q67: =IF(A67="","",IF(OR(B67="",C67=""),ERROR.TYPE(3),IFERROR(O67/(IF(F67=120,$G$12,'LDT2,HLDT,MDPV'!$G$11)),""))) -> 
Q68: =IF(A68="","",IF(OR(B68="",C68=""),ERROR.TYPE(3),IFERROR(O68/(IF(F68=120,$G$12,'LDT2,HLDT,MDPV'!$G$11)),""))) -> 
Q69: =IF(A69="","",IF(OR(B69="",C69=""),ERROR.TYPE(3),IFERROR(O69/(IF(F69=120,$G$12,'LDT2,HLDT,MDPV'!$G$11)),""))) -> 
Q70: =IF(A70="","",IF(OR(B70="",C70=""),ERROR.TYPE(3),IFERROR(O70/(IF(F70=120,$G$12,'LDT2,HLDT,MDPV'!$G$11)),""))) -> 
Q71: =IF(A71="","",IF(OR(B71="",C71=""),ERROR.TYPE(3),IFERROR(O71/(IF(F71=120,$G$12,'LDT2,HLDT,MDPV'!$G$11)),""))) -> 
Q72: =IF(A72="","",IF(OR(B72="",C72=""),ERROR.TYPE(3),IFERROR(O72/(IF(F72=120,$G$12,'LDT2,HLDT,MDPV'!$G$11)),""))) -> 
Q73: =IF(A73="","",IF(OR(B73="",C73=""),ERROR.TYPE(3),IFERROR(O73/(IF(F73=120,$G$12,'LDT2,HLDT,MDPV'!$G$11)),""))) -> 
Q74: =IF(A74="","",IF(OR(B74="",C74=""),ERROR.TYPE(3),IFERROR(O74/(IF(F74=120,$G$12,'LDT2,HLDT,MDPV'!$G$11)),""))) -> 
Q75: =IF(A75="","",IF(OR(B75="",C75=""),ERROR.TYPE(3),IFERROR(O75/(IF(F75=120,$G$12,'LDT2,HLDT,MDPV'!$G$11)),""))) -> 
Q76: =IF(A76="","",IF(OR(B76="",C76=""),ERROR.TYPE(3),IFERROR(O76/(IF(F76=120,$G$12,'LDT2,HLDT,MDPV'!$G$11)),""))) -> 
Q77: =IF(A77="","",IF(OR(B77="",C77=""),ERROR.TYPE(3),IFERROR(O77/(IF(F77=120,$G$12,'LDT2,HLDT,MDPV'!$G$11)),""))) -> 
Q78: =IF(A78="","",IF(OR(B78="",C78=""),ERROR.TYPE(3),IFERROR(O78/(IF(F78=120,$G$12,'LDT2,HLDT,MDPV'!$G$11)),""))) -> 
Q79: =IF(A79="","",IF(OR(B79="",C79=""),ERROR.TYPE(3),IFERROR(O79/(IF(F79=120,$G$12,'LDT2,HLDT,MDPV'!$G$11)),""))) -> 
Q80: =IF(A80="","",IF(OR(B80="",C80=""),ERROR.TYPE(3),IFERROR(O80/(IF(F80=120,$G$12,'LDT2,HLDT,MDPV'!$G$11)),""))) -> 
Q81: =IF(A81="","",IF(OR(B81="",C81=""),ERROR.TYPE(3),IFERROR(O81/(IF(F81=120,$G$12,'LDT2,HLDT,MDPV'!$G$11)),""))) -> 
L82: =IF(A82="","",IF(B82=160,0.16,IF(B82=125,0.125,IF(B82=110,0.11,IF(B82=85,0.085,IF(B82="FED SULEV30",0.03,IF(B82=70,0.07,IF(B82=50,0.05,IF(B82=30,0.03,IF(B82=20,0.02,IF(B82=0,0,"n/a"))))))))))) ->  | M82: =IF(L82="","",MAX(0,L82-IF(G82="Yes",0.005,0))-IF(H82="Yes",I82,0)) ->  | N82: =IF(A82="","",IF(OR(B82="",C82=""),"FIX BIN",J82*M82)) ->  | O82: =IF(A82="","",IF(OR(B82="",C82=""),"FIX BIN",IFERROR(J82*C82,""))) ->  | P82: =IF(A82="","",IF(OR(B82="",C82=""),ERROR.TYPE(3),IFERROR(N82/(IF(E82=120,$G$11,$M$11)),""))) ->  | Q82: =IF(A82="","",IF(OR(B82="",C82=""),ERROR.TYPE(3),IFERROR(O82/(IF(F82=120,$G$12,'LDT2,HLDT,MDPV'!$G$11)),""))) -> 
Q83: =IF(A83="","",IF(OR(B83="",C83=""),ERROR.TYPE(3),IFERROR(O83/(IF(F83=120,$G$12,'LDT2,HLDT,MDPV'!$G$11)),""))) -> 
Q84: =IF(A84="","",IF(OR(B84="",C84=""),ERROR.TYPE(3),IFERROR(O84/(IF(F84=120,$G$12,'LDT2,HLDT,MDPV'!$G$11)),""))) -> 
Q85: =IF(A85="","",IF(OR(B85="",C85=""),ERROR.TYPE(3),IFERROR(O85/(IF(F85=120,$G$12,'LDT2,HLDT,MDPV'!$G$11)),""))) -> 
Q86: =IF(A86="","",IF(OR(B86="",C86=""),ERROR.TYPE(3),IFERROR(O86/(IF(F86=120,$G$12,'LDT2,HLDT,MDPV'!$G$11)),""))) -> 
Q87: =IF(A87="","",IF(OR(B87="",C87=""),ERROR.TYPE(3),IFERROR(O87/(IF(F87=120,$G$12,'LDT2,HLDT,MDPV'!$G$11)),""))) -> 
Q88: =IF(A88="","",IF(OR(B88="",C88=""),ERROR.TYPE(3),IFERROR(O88/(IF(F88=120,$G$12,'LDT2,HLDT,MDPV'!$G$11)),""))) -> 
Q89: =IF(A89="","",IF(OR(B89="",C89=""),ERROR.TYPE(3),IFERROR(O89/(IF(F89=120,$G$12,'LDT2,HLDT,MDPV'!$G$11)),""))) -> 
Q90: =IF(A90="","",IF(OR(B90="",C90=""),ERROR.TYPE(3),IFERROR(O90/(IF(F90=120,$G$12,'LDT2,HLDT,MDPV'!$G$11)),""))) -> 
Q91: =IF(A91="","",IF(OR(B91="",C91=""),ERROR.TYPE(3),IFERROR(O91/(IF(F91=120,$G$12,'LDT2,HLDT,MDPV'!$G$11)),""))) -> 
Q92: =IF(A92="","",IF(OR(B92="",C92=""),ERROR.TYPE(3),IFERROR(O92/(IF(F92=120,$G$12,'LDT2,HLDT,MDPV'!$G$11)),""))) -> 
Q93: =IF(A93="","",IF(OR(B93="",C93=""),ERROR.TYPE(3),IFERROR(O93/(IF(F93=120,$G$12,'LDT2,HLDT,MDPV'!$G$11)),""))) -> 
Q94: =IF(A94="","",IF(OR(B94="",C94=""),ERROR.TYPE(3),IFERROR(O94/(IF(F94=120,$G$12,'LDT2,HLDT,MDPV'!$G$11)),""))) -> 
Q95: =IF(A95="","",IF(OR(B95="",C95=""),ERROR.TYPE(3),IFERROR(O95/(IF(F95=120,$G$12,'LDT2,HLDT,MDPV'!$G$11)),""))) -> 
Q96: =IF(A96="","",IF(OR(B96="",C96=""),ERROR.TYPE(3),IFERROR(O96/(IF(F96=120,$G$12,'LDT2,HLDT,MDPV'!$G$11)),""))) -> 
Q97: =IF(A97="","",IF(OR(B97="",C97=""),ERROR.TYPE(3),IFERROR(O97/(IF(F97=120,$G$12,'LDT2,HLDT,MDPV'!$G$11)),""))) -> 
Q98: =IF(A98="","",IF(OR(B98="",C98=""),ERROR.TYPE(3),IFERROR(O98/(IF(F98=120,$G$12,'LDT2,HLDT,MDPV'!$G$11)),""))) -> 
Q99: =IF(A99="","",IF(OR(B99="",C99=""),ERROR.TYPE(3),IFERROR(O99/(IF(F99=120,$G$12,'LDT2,HLDT,MDPV'!$G$11)),""))) -> 
Q100: =IF(A100="","",IF(OR(B100="",C100=""),ERROR.TYPE(3),IFERROR(O100/(IF(F100=120,$G$12,'LDT2,HLDT,MDPV'!$G$11)),""))) -> 
Q101: =IF(A101="","",IF(OR(B101="",C101=""),ERROR.TYPE(3),IFERROR(O101/(IF(F101=120,$G$12,'LDT2,HLDT,MDPV'!$G$11)),""))) -> 
Q102: =IF(A102="","",IF(OR(B102="",C102=""),ERROR.TYPE(3),IFERROR(O102/(IF(F102=120,$G$12,'LDT2,HLDT,MDPV'!$G$11)),""))) -> 
Q103: =IF(A103="","",IF(OR(B103="",C103=""),ERROR.TYPE(3),IFERROR(O103/(IF(F103=120,$G$12,'LDT2,HLDT,MDPV'!$G$11)),""))) -> 
Q104: =IF(A104="","",IF(OR(B104="",C104=""),ERROR.TYPE(3),IFERROR(O104/(IF(F104=120,$G$12,'LDT2,HLDT,MDPV'!$G$11)),""))) -> 
Q105: =IF(A105="","",IF(OR(B105="",C105=""),ERROR.TYPE(3),IFERROR(O105/(IF(F105=120,$G$12,'LDT2,HLDT,MDPV'!$G$11)),""))) -> 
Q106: =IF(A106="","",IF(OR(B106="",C106=""),ERROR.TYPE(3),IFERROR(O106/(IF(F106=120,$G$12,'LDT2,HLDT,MDPV'!$G$11)),""))) -> 
Q107: =IF(A107="","",IF(OR(B107="",C107=""),ERROR.TYPE(3),IFERROR(O107/(IF(F107=120,$G$12,'LDT2,HLDT,MDPV'!$G$11)),""))) -> 
Q108: =IF(A108="","",IF(OR(B108="",C108=""),ERROR.TYPE(3),IFERROR(O108/(IF(F108=120,$G$12,'LDT2,HLDT,MDPV'!$G$11)),""))) -> 
Q109: =IF(A109="","",IF(OR(B109="",C109=""),ERROR.TYPE(3),IFERROR(O109/(IF(F109=120,$G$12,'LDT2,HLDT,MDPV'!$G$11)),""))) -> 
Q110: =IF(A110="","",IF(OR(B110="",C110=""),ERROR.TYPE(3),IFERROR(O110/(IF(F110=120,$G$12,'LDT2,HLDT,MDPV'!$G$11)),""))) -> 
Q111: =IF(A111="","",IF(OR(B111="",C111=""),ERROR.TYPE(3),IFERROR(O111/(IF(F111=120,$G$12,'LDT2,HLDT,MDPV'!$G$11)),""))) -> 
Q112: =IF(A112="","",IF(OR(B112="",C112=""),ERROR.TYPE(3),IFERROR(O112/(IF(F112=120,$G$12,'LDT2,HLDT,MDPV'!$G$11)),""))) -> 
Q113: =IF(A113="","",IF(OR(B113="",C113=""),ERROR.TYPE(3),IFERROR(O113/(IF(F113=120,$G$12,'LDT2,HLDT,MDPV'!$G$11)),""))) -> 
Q114: =IF(A114="","",IF(OR(B114="",C114=""),ERROR.TYPE(3),IFERROR(O114/(IF(F114=120,$G$12,'LDT2,HLDT,MDPV'!$G$11)),""))) -> 
Q115: =IF(A115="","",IF(OR(B115="",C115=""),ERROR.TYPE(3),IFERROR(O115/(IF(F115=120,$G$12,'LDT2,HLDT,MDPV'!$G$11)),""))) -> 
Q116: =IF(A116="","",IF(OR(B116="",C116=""),ERROR.TYPE(3),IFERROR(O116/(IF(F116=120,$G$12,'LDT2,HLDT,MDPV'!$G$11)),""))) -> 
Q117: =IF(A117="","",IF(OR(B117="",C117=""),ERROR.TYPE(3),IFERROR(O117/(IF(F117=120,$G$12,'LDT2,HLDT,MDPV'!$G$11)),""))) -> 
Q118: =IF(A118="","",IF(OR(B118="",C118=""),ERROR.TYPE(3),IFERROR(O118/(IF(F118=120,$G$12,'LDT2,HLDT,MDPV'!$G$11)),""))) -> 
Q119: =IF(A119="","",IF(OR(B119="",C119=""),ERROR.TYPE(3),IFERROR(O119/(IF(F119=120,$G$12,'LDT2,HLDT,MDPV'!$G$11)),""))) -> 
Q120: =IF(A120="","",IF(OR(B120="",C120=""),ERROR.TYPE(3),IFERROR(O120/(IF(F120=120,$G$12,'LDT2,HLDT,MDPV'!$G$11)),""))) -> 
Q121: =IF(A121="","",IF(OR(B121="",C121=""),ERROR.TYPE(3),IFERROR(O121/(IF(F121=120,$G$12,'LDT2,HLDT,MDPV'!$G$11)),""))) -> 
Q122: =IF(A122="","",IF(OR(B122="",C122=""),ERROR.TYPE(3),IFERROR(O122/(IF(F122=120,$G$12,'LDT2,HLDT,MDPV'!$G$11)),""))) -> 
Q123: =IF(A123="","",IF(OR(B123="",C123=""),ERROR.TYPE(3),IFERROR(O123/(IF(F123=120,$G$12,'LDT2,HLDT,MDPV'!$G$11)),""))) -> 
Q124: =IF(A124="","",IF(OR(B124="",C124=""),ERROR.TYPE(3),IFERROR(O124/(IF(F124=120,$G$12,'LDT2,HLDT,MDPV'!$G$11)),""))) -> 
Q125: =IF(A125="","",IF(OR(B125="",C125=""),ERROR.TYPE(3),IFERROR(O125/(IF(F125=120,$G$12,'LDT2,HLDT,MDPV'!$G$11)),""))) -> 
Q126: =IF(A126="","",IF(OR(B126="",C126=""),ERROR.TYPE(3),IFERROR(O126/(IF(F126=120,$G$12,'LDT2,HLDT,MDPV'!$G$11)),""))) -> 
Q127: =IF(A127="","",IF(OR(B127="",C127=""),ERROR.TYPE(3),IFERROR(O127/(IF(F127=120,$G$12,'LDT2,HLDT,MDPV'!$G$11)),""))) -> 
Q128: =IF(A128="","",IF(OR(B128="",C128=""),ERROR.TYPE(3),IFERROR(O128/(IF(F128=120,$G$12,'LDT2,HLDT,MDPV'!$G$11)),""))) -> 
Q129: =IF(A129="","",IF(OR(B129="",C129=""),ERROR.TYPE(3),IFERROR(O129/(IF(F129=120,$G$12,'LDT2,HLDT,MDPV'!$G$11)),""))) -> 
Q130: =IF(A130="","",IF(OR(B130="",C130=""),ERROR.TYPE(3),IFERROR(O130/(IF(F130=120,$G$12,'LDT2,HLDT,MDPV'!$G$11)),""))) -> 
Q131: =IF(A131="","",IF(OR(B131="",C131=""),ERROR.TYPE(3),IFERROR(O131/(IF(F131=120,$G$12,'LDT2,HLDT,MDPV'!$G$11)),""))) -> 
Q132: =IF(A132="","",IF(OR(B132="",C132=""),ERROR.TYPE(3),IFERROR(O132/(IF(F132=120,$G$12,'LDT2,HLDT,MDPV'!$G$11)),""))) -> 
Q133: =IF(A133="","",IF(OR(B133="",C133=""),ERROR.TYPE(3),IFERROR(O133/(IF(F133=120,$G$12,'LDT2,HLDT,MDPV'!$G$11)),""))) -> 
Q134: =IF(A134="","",IF(OR(B134="",C134=""),ERROR.TYPE(3),IFERROR(O134/(IF(F134=120,$G$12,'LDT2,HLDT,MDPV'!$G$11)),""))) -> 
Q135: =IF(A135="","",IF(OR(B135="",C135=""),ERROR.TYPE(3),IFERROR(O135/(IF(F135=120,$G$12,'LDT2,HLDT,MDPV'!$G$11)),""))) -> 
Q136: =IF(A136="","",IF(OR(B136="",C136=""),ERROR.TYPE(3),IFERROR(O136/(IF(F136=120,$G$12,'LDT2,HLDT,MDPV'!$G$11)),""))) -> 
Q137: =IF(A137="","",IF(OR(B137="",C137=""),ERROR.TYPE(3),IFERROR(O137/(IF(F137=120,$G$12,'LDT2,HLDT,MDPV'!$G$11)),""))) -> 
Q138: =IF(A138="","",IF(OR(B138="",C138=""),ERROR.TYPE(3),IFERROR(O138/(IF(F138=120,$G$12,'LDT2,HLDT,MDPV'!$G$11)),""))) -> 
Q139: =IF(A139="","",IF(OR(B139="",C139=""),ERROR.TYPE(3),IFERROR(O139/(IF(F139=120,$G$12,'LDT2,HLDT,MDPV'!$G$11)),""))) -> 
Q140: =IF(A140="","",IF(OR(B140="",C140=""),ERROR.TYPE(3),IFERROR(O140/(IF(F140=120,$G$12,'LDT2,HLDT,MDPV'!$G$11)),""))) -> 
Q141: =IF(A141="","",IF(OR(B141="",C141=""),ERROR.TYPE(3),IFERROR(O141/(IF(F141=120,$G$12,'LDT2,HLDT,MDPV'!$G$11)),""))) -> 
Q142: =IF(A142="","",IF(OR(B142="",C142=""),ERROR.TYPE(3),IFERROR(O142/(IF(F142=120,$G$12,'LDT2,HLDT,MDPV'!$G$11)),""))) -> 
Q143: =IF(A143="","",IF(OR(B143="",C143=""),ERROR.TYPE(3),IFERROR(O143/(IF(F143=120,$G$12,'LDT2,HLDT,MDPV'!$G$11)),""))) -> 
Q144: =IF(A144="","",IF(OR(B144="",C144=""),ERROR.TYPE(3),IFERROR(O144/(IF(F144=120,$G$12,'LDT2,HLDT,MDPV'!$G$11)),""))) -> 
Q145: =IF(A145="","",IF(OR(B145="",C145=""),ERROR.TYPE(3),IFERROR(O145/(IF(F145=120,$G$12,'LDT2,HLDT,MDPV'!$G$11)),""))) -> 
L146: =IF(A146="","",IF(B146=160,0.16,IF(B146=125,0.125,IF(B146=110,0.11,IF(B146=85,0.085,IF(B146="FED SULEV30",0.03,IF(B146=70,0.07,IF(B146=50,0.05,IF(B146=30,0.03,IF(B146=20,0.02,IF(B146=0,0,"n/a"))))))))))) ->  | M146: =IF(L146="","",MAX(0,L146-IF(G146="Yes",0.005,0))-IF(H146="Yes",I146,0)) ->  | N146: =IF(A146="","",IF(OR(B146="",C146=""),"FIX BIN",J146*M146)) ->  | O146: =IF(A146="","",IF(OR(B146="",C146=""),"FIX BIN",IFERROR(J146*C146,""))) ->  | P146: =IF(A146="","",IF(OR(B146="",C146=""),ERROR.TYPE(3),IFERROR(N146/(IF(E146=120,$G$11,$M$11)),""))) ->  | Q146: =IF(A146="","",IF(OR(B146="",C146=""),ERROR.TYPE(3),IFERROR(O146/(IF(F146=120,$G$12,'LDT2,HLDT,MDPV'!$G$11)),""))) -> 
Q147: =IF(A147="","",IF(OR(B147="",C147=""),ERROR.TYPE(3),IFERROR(O147/(IF(F147=120,$G$12,'LDT2,HLDT,MDPV'!$G$11)),""))) -> 
Q148: =IF(A148="","",IF(OR(B148="",C148=""),ERROR.TYPE(3),IFERROR(O148/(IF(F148=120,$G$12,'LDT2,HLDT,MDPV'!$G$11)),""))) -> 
Q149: =IF(A149="","",IF(OR(B149="",C149=""),ERROR.TYPE(3),IFERROR(O149/(IF(F149=120,$G$12,'LDT2,HLDT,MDPV'!$G$11)),""))) -> 
Q150: =IF(A150="","",IF(OR(B150="",C150=""),ERROR.TYPE(3),IFERROR(O150/(IF(F150=120,$G$12,'LDT2,HLDT,MDPV'!$G$11)),""))) -> 
Q151: =IF(A151="","",IF(OR(B151="",C151=""),ERROR.TYPE(3),IFERROR(O151/(IF(F151=120,$G$12,'LDT2,HLDT,MDPV'!$G$11)),""))) -> 
Q152: =IF(A152="","",IF(OR(B152="",C152=""),ERROR.TYPE(3),IFERROR(O152/(IF(F152=120,$G$12,'LDT2,HLDT,MDPV'!$G$11)),""))) -> 
Q153: =IF(A153="","",IF(OR(B153="",C153=""),ERROR.TYPE(3),IFERROR(O153/(IF(F153=120,$G$12,'LDT2,HLDT,MDPV'!$G$11)),""))) -> 
Q154: =IF(A154="","",IF(OR(B154="",C154=""),ERROR.TYPE(3),IFERROR(O154/(IF(F154=120,$G$12,'LDT2,HLDT,MDPV'!$G$11)),""))) -> 
Q155: =IF(A155="","",IF(OR(B155="",C155=""),ERROR.TYPE(3),IFERROR(O155/(IF(F155=120,$G$12,'LDT2,HLDT,MDPV'!$G$11)),""))) -> 
Q156: =IF(A156="","",IF(OR(B156="",C156=""),ERROR.TYPE(3),IFERROR(O156/(IF(F156=120,$G$12,'LDT2,HLDT,MDPV'!$G$11)),""))) -> 
Q157: =IF(A157="","",IF(OR(B157="",C157=""),ERROR.TYPE(3),IFERROR(O157/(IF(F157=120,$G$12,'LDT2,HLDT,MDPV'!$G$11)),""))) -> 
Q158: =IF(A158="","",IF(OR(B158="",C158=""),ERROR.TYPE(3),IFERROR(O158/(IF(F158=120,$G$12,'LDT2,HLDT,MDPV'!$G$11)),""))) -> 
Q159: =IF(A159="","",IF(OR(B159="",C159=""),ERROR.TYPE(3),IFERROR(O159/(IF(F159=120,$G$12,'LDT2,HLDT,MDPV'!$G$11)),""))) -> 
Q160: =IF(A160="","",IF(OR(B160="",C160=""),ERROR.TYPE(3),IFERROR(O160/(IF(F160=120,$G$12,'LDT2,HLDT,MDPV'!$G$11)),""))) -> 
Q161: =IF(A161="","",IF(OR(B161="",C161=""),ERROR.TYPE(3),IFERROR(O161/(IF(F161=120,$G$12,'LDT2,HLDT,MDPV'!$G$11)),""))) -> 
Q162: =IF(A162="","",IF(OR(B162="",C162=""),ERROR.TYPE(3),IFERROR(O162/(IF(F162=120,$G$12,'LDT2,HLDT,MDPV'!$G$11)),""))) -> 
Q163: =IF(A163="","",IF(OR(B163="",C163=""),ERROR.TYPE(3),IFERROR(O163/(IF(F163=120,$G$12,'LDT2,HLDT,MDPV'!$G$11)),""))) -> 
Q164: =IF(A164="","",IF(OR(B164="",C164=""),ERROR.TYPE(3),IFERROR(O164/(IF(F164=120,$G$12,'LDT2,HLDT,MDPV'!$G$11)),""))) -> 
Q165: =IF(A165="","",IF(OR(B165="",C165=""),ERROR.TYPE(3),IFERROR(O165/(IF(F165=120,$G$12,'LDT2,HLDT,MDPV'!$G$11)),""))) -> 
Q166: =IF(A166="","",IF(OR(B166="",C166=""),ERROR.TYPE(3),IFERROR(O166/(IF(F166=120,$G$12,'LDT2,HLDT,MDPV'!$G$11)),""))) -> 
Q167: =IF(A167="","",IF(OR(B167="",C167=""),ERROR.TYPE(3),IFERROR(O167/(IF(F167=120,$G$12,'LDT2,HLDT,MDPV'!$G$11)),""))) -> 
Q168: =IF(A168="","",IF(OR(B168="",C168=""),ERROR.TYPE(3),IFERROR(O168/(IF(F168=120,$G$12,'LDT2,HLDT,MDPV'!$G$11)),""))) -> 
Q169: =IF(A169="","",IF(OR(B169="",C169=""),ERROR.TYPE(3),IFERROR(O169/(IF(F169=120,$G$12,'LDT2,HLDT,MDPV'!$G$11)),""))) -> 
Q170: =IF(A170="","",IF(OR(B170="",C170=""),ERROR.TYPE(3),IFERROR(O170/(IF(F170=120,$G$12,'LDT2,HLDT,MDPV'!$G$11)),""))) -> 
Q171: =IF(A171="","",IF(OR(B171="",C171=""),ERROR.TYPE(3),IFERROR(O171/(IF(F171=120,$G$12,'LDT2,HLDT,MDPV'!$G$11)),""))) -> 
Q172: =IF(A172="","",IF(OR(B172="",C172=""),ERROR.TYPE(3),IFERROR(O172/(IF(F172=120,$G$12,'LDT2,HLDT,MDPV'!$G$11)),""))) -> 
Q173: =IF(A173="","",IF(OR(B173="",C173=""),ERROR.TYPE(3),IFERROR(O173/(IF(F173=120,$G$12,'LDT2,HLDT,MDPV'!$G$11)),""))) -> 
Q174: =IF(A174="","",IF(OR(B174="",C174=""),ERROR.TYPE(3),IFERROR(O174/(IF(F174=120,$G$12,'LDT2,HLDT,MDPV'!$G$11)),""))) -> 
Q175: =IF(A175="","",IF(OR(B175="",C175=""),ERROR.TYPE(3),IFERROR(O175/(IF(F175=120,$G$12,'LDT2,HLDT,MDPV'!$G$11)),""))) -> 
Q176: =IF(A176="","",IF(OR(B176="",C176=""),ERROR.TYPE(3),IFERROR(O176/(IF(F176=120,$G$12,'LDT2,HLDT,MDPV'!$G$11)),""))) -> 
Q177: =IF(A177="","",IF(OR(B177="",C177=""),ERROR.TYPE(3),IFERROR(O177/(IF(F177=120,$G$12,'LDT2,HLDT,MDPV'!$G$11)),""))) -> 
Q178: =IF(A178="","",IF(OR(B178="",C178=""),ERROR.TYPE(3),IFERROR(O178/(IF(F178=120,$G$12,'LDT2,HLDT,MDPV'!$G$11)),""))) -> 
Q179: =IF(A179="","",IF(OR(B179="",C179=""),ERROR.TYPE(3),IFERROR(O179/(IF(F179=120,$G$12,'LDT2,HLDT,MDPV'!$G$11)),""))) -> 
Q180: =IF(A180="","",IF(OR(B180="",C180=""),ERROR.TYPE(3),IFERROR(O180/(IF(F180=120,$G$12,'LDT2,HLDT,MDPV'!$G$11)),""))) -> 
Q181: =IF(A181="","",IF(OR(B181="",C181=""),ERROR.TYPE(3),IFERROR(O181/(IF(F181=120,$G$12,'LDT2,HLDT,MDPV'!$G$11)),""))) -> 
Q182: =IF(A182="","",IF(OR(B182="",C182=""),ERROR.TYPE(3),IFERROR(O182/(IF(F182=120,$G$12,'LDT2,HLDT,MDPV'!$G$11)),""))) -> 
Q183: =IF(A183="","",IF(OR(B183="",C183=""),ERROR.TYPE(3),IFERROR(O183/(IF(F183=120,$G$12,'LDT2,HLDT,MDPV'!$G$11)),""))) -> 
Q184: =IF(A184="","",IF(OR(B184="",C184=""),ERROR.TYPE(3),IFERROR(O184/(IF(F184=120,$G$12,'LDT2,HLDT,MDPV'!$G$11)),""))) -> 
Q185: =IF(A185="","",IF(OR(B185="",C185=""),ERROR.TYPE(3),IFERROR(O185/(IF(F185=120,$G$12,'LDT2,HLDT,MDPV'!$G$11)),""))) -> 
Q186: =IF(A186="","",IF(OR(B186="",C186=""),ERROR.TYPE(3),IFERROR(O186/(IF(F186=120,$G$12,'LDT2,HLDT,MDPV'!$G$11)),""))) -> 
Q187: =IF(A187="","",IF(OR(B187="",C187=""),ERROR.TYPE(3),IFERROR(O187/(IF(F187=120,$G$12,'LDT2,HLDT,MDPV'!$G$11)),""))) -> 
Q188: =IF(A188="","",IF(OR(B188="",C188=""),ERROR.TYPE(3),IFERROR(O188/(IF(F188=120,$G$12,'LDT2,HLDT,MDPV'!$G$11)),""))) -> 
Q189: =IF(A189="","",IF(OR(B189="",C189=""),ERROR.TYPE(3),IFERROR(O189/(IF(F189=120,$G$12,'LDT2,HLDT,MDPV'!$G$11)),""))) -> 
Q190: =IF(A190="","",IF(OR(B190="",C190=""),ERROR.TYPE(3),IFERROR(O190/(IF(F190=120,$G$12,'LDT2,HLDT,MDPV'!$G$11)),""))) -> 
Q191: =IF(A191="","",IF(OR(B191="",C191=""),ERROR.TYPE(3),IFERROR(O191/(IF(F191=120,$G$12,'LDT2,HLDT,MDPV'!$G$11)),""))) -> 
Q192: =IF(A192="","",IF(OR(B192="",C192=""),ERROR.TYPE(3),IFERROR(O192/(IF(F192=120,$G$12,'LDT2,HLDT,MDPV'!$G$11)),""))) -> 
Q193: =IF(A193="","",IF(OR(B193="",C193=""),ERROR.TYPE(3),IFERROR(O193/(IF(F193=120,$G$12,'LDT2,HLDT,MDPV'!$G$11)),""))) -> 
Q194: =IF(A194="","",IF(OR(B194="",C194=""),ERROR.TYPE(3),IFERROR(O194/(IF(F194=120,$G$12,'LDT2,HLDT,MDPV'!$G$11)),""))) -> 
Q195: =IF(A195="","",IF(OR(B195="",C195=""),ERROR.TYPE(3),IFERROR(O195/(IF(F195=120,$G$12,'LDT2,HLDT,MDPV'!$G$11)),""))) -> 
Q196: =IF(A196="","",IF(OR(B196="",C196=""),ERROR.TYPE(3),IFERROR(O196/(IF(F196=120,$G$12,'LDT2,HLDT,MDPV'!$G$11)),""))) -> 
Q197: =IF(A197="","",IF(OR(B197="",C197=""),ERROR.TYPE(3),IFERROR(O197/(IF(F197=120,$G$12,'LDT2,HLDT,MDPV'!$G$11)),""))) -> 
Q198: =IF(A198="","",IF(OR(B198="",C198=""),ERROR.TYPE(3),IFERROR(O198/(IF(F198=120,$G$12,'LDT2,HLDT,MDPV'!$G$11)),""))) -> 
Q199: =IF(A199="","",IF(OR(B199="",C199=""),ERROR.TYPE(3),IFERROR(O199/(IF(F199=120,$G$12,'LDT2,HLDT,MDPV'!$G$11)),""))) -> 
Q200: =IF(A200="","",IF(OR(B200="",C200=""),ERROR.TYPE(3),IFERROR(O200/(IF(F200=120,$G$12,'LDT2,HLDT,MDPV'!$G$11)),""))) -> 
Q201: =IF(A201="","",IF(OR(B201="",C201=""),ERROR.TYPE(3),IFERROR(O201/(IF(F201=120,$G$12,'LDT2,HLDT,MDPV'!$G$11)),""))) -> 
Q202: =IF(A202="","",IF(OR(B202="",C202=""),ERROR.TYPE(3),IFERROR(O202/(IF(F202=120,$G$12,'LDT2,HLDT,MDPV'!$G$11)),""))) -> 
Q203: =IF(A203="","",IF(OR(B203="",C203=""),ERROR.TYPE(3),IFERROR(O203/(IF(F203=120,$G$12,'LDT2,HLDT,MDPV'!$G$11)),""))) -> 
Q204: =IF(A204="","",IF(OR(B204="",C204=""),ERROR.TYPE(3),IFERROR(O204/(IF(F204=120,$G$12,'LDT2,HLDT,MDPV'!$G$11)),""))) -> 
... 283 more rows

Sheet LDT2,HLDT,MDPV
A1: Example Template - Federal Tier 3 Banking & Trading LDT2/HLDT/MDPV Vehicle Table for One Model Year
A2: Manufacturer: ___________________________ | L2: Date:_____________________
A4: Purpose and Scope of this Guidance Document
A5: This document was prepared by EPA's Office of Transportation and Air Quality (OTAQ). It is one of several intended to aid regulated parties in reporting Tier 3 and Cold NMHC Averaging, Banking and Trading (AB&T) information and calculating AB&T fleet average credits for light-duty vehicles and certain heavy-duty class 2b and 3 vehicles, ref. 40 CFR 86.1862-04(c). It contains EPA's recommended format for manufacturers to report to EPA their end-of-year Tier 3 AB&T calculations, credits and other information with respect to the implementation of the AB&T provisions of the EPA Tier 3 final rule (79 FR 23414, April 28, 2014) as amended (80 FR 9078, February 19, 2015; 80 FR 26463, May 8, 2015); ref. 40 CFR Parts 85, 86, 600, 1065, 1066. Use of this document is purely optional. This document does not in any way alter or waive the requirements in EPA regulations. Although the calculations and formulas provided in this document are intended to assist manufacturers in the implementation of EPA regulations, this document does not establish or change the legal rights or obligations of manufacturers or others in complying with EPA regulations, including 40 CFR 86.1862-04(c). If an error or other discrepancy is found in this document, including the calculation formulas, please contact your EPA certification team member or Dave Good at (734) 214-4450 or by email at good.david@epa.gov. The regulations take precedence.
F7: 150K Averaging Set | O7: OMB Control Number 2060-0104 Expires 3-31-2020
F8: Emission Standard | G8: Total Production | H8: Fleet average compliance | I8: Fleet average standard | J8: Credits or Debits
A9: Instructions | H9: g/mi | I9: g/mi | J9: g/mi
F10: FTP (NMOG+NOx) | G10: =SUMIF(E17:E486,"150",J17:J486) -> 70403 | H10: =astm(SUMIF(E17:E486,"150",P17:P486),3) -> 0.12 | I10: =IF(C13="Yes",IF(C11<2022,0.125,0.051),IF(C11=2015,0.119,IF(C11=2016,0.11,IF(C11=2017,0.101,IF(C11=2018,0.092,IF(C11=2019,0.083,IF(C11=2020,0.074,IF(C11=2021,0.065,IF(C11=2022,0.056,IF(C11=2023,0.047,IF(C11=2024,0.038,IF(C11>=2025,0.03,"n/a")))))))))))) -> 0.101 | J10: =IF(C13="Yes",IF(C11<2022,0,astm(((I10-H10)*$G$10),0)),astm(((I10-H10)*$G$10),0)) -> -1338
A11: Select Model Year: | C11: 2017 | F11: SFTP (NMOG+NOx) | G11: =IF(C11-'LDV,LDT1'!C12<>0, "MY ERROR", SUMIF(F17:F486,"150",J17:J486)+SUMIF('LDV,LDT1'!F18:'LDV,LDT1'!F487,"150",'LDV,LDT1'!J18:'LDV,LDT1'!J487)) -> 264243 | H11: =astm(SUMIF(F17:F486,150,Q17:Q486)+SUMIF('LDV,LDT1'!F18:'LDV,LDT1'!F487,150,'LDV,LDT1'!Q18:'LDV,LDT1'!Q487),3) ->  | I11: =IF(C11=2015,0.14,IF(C11=2016,0.11,IF(C11=2017,0.103,IF(C11=2018,0.097,IF(C11=2019,0.09,IF(C11=2020,0.083,IF(C11=2021,0.077,IF(C11=2022,0.07,IF(C11=2023,0.063,IF(C11=2024,0.057,IF(C11>=2025,0.05,"n/a"))))))))))) -> 0.103 | J11: =IF(C11-'LDV,LDT1'!C12<>0,"ERROR--Model year doesn't match model year used on LDV,LDT1 spreadsheet",astm(((I11-H11)*G$11),0)) -> 
A13: Small Volume under 86.1811-17(h)(1)? | C13: No
A15: Test Group | B15: Bin (NMOG + NOx) | C15: SFTP NMOG + NOx standard | D15: Test Group Useful Life Miles | E15: FTP Useful Life of Averaging Set | F15: SFTP Useful Life of Averaging Set | G15: 150K Warranty per §86.1811-17(b)(4)(ii) | H15: 50-State Direct Ozone Reduction (DOR) (LEV III regs) | I15: If yes to DOR, CARB Approved Level | J15: Production (50-State) | K15: Comments | L15: FTP NMOG + NOx standard [Column B Bin x 0.001] | M15: Actual FTP NMOG + NOx Standard Level [Derived from columns G, H, I, L] | N15: FTP Production x Bin [Columns J x M] | O15: SFTP Production x Bin [Columns J x C] | P15: FTP Intermediate calulation | Q15: SFTP Intermediate calulation
C16: g/mi | D16: x1000 Mi | E16: x1000 Miles | F16: x1000 Miles | G16: Y or N | H16: Y or N | I16: g/mi | J16: # of Units | L16: g/mi | M16: g/mi | N16: g/mi | O16: g/mi
A17: A | B17: 160 | C17: 0.06 | D17: 120 | E17: 150 | F17: 150 | G17: Yes | H17: Yes | I17: 0.004 | J17: 50000 | K17: LDT2 only; [Formatted comments field cells to "wrap text" as shown in the example comments for this cell.] | L17: =IF(A17="","",IF(B17=160,0.16,IF(B17=125,0.125,IF(B17=110,0.11,IF(B17=85,0.085,IF(B17="FED SULEV30",0.03,IF(B17=70,0.07,IF(B17=50,0.05,IF(B17=30,0.03,IF(B17=20,0.02,IF(B17=0,0,"n/a"))))))))))) -> 0.16 | M17: =IF(L17="","",MAX(0,L17-IF(G17="Yes",0.005,0))-IF(H17="Yes",I17,0)) -> 0.151 | N17: =IF(A17="","",IF(OR(B17="",C17=""),"FIX BIN",J17*M17)) -> 7550 | O17: =IF(A17="","",IF(OR(B17="",C17=""),"FIX BIN",IFERROR(J17*C17,""))) -> 3000 | P17: =IF(A17="","",IF(OR(B17="",C17=""),ERROR.TYPE(3),IFERROR(N17/$G$10,""))) -> 0.1072397483 | Q17: =IF(A17="","",IF(OR(B17="",C17=""),ERROR.TYPE(3),IFERROR(O17/$G$11,""))) -> 0.01135318627
A18: B | B18: 50 | C18: 0.07 | D18: 150 | E18: 150 | F18: 150 | G18: No | H18: No | J18: 15403 | K18: LDT2 only | L18: 0.05 | M18: 0.05 | N18: 770.15 | O18: 1078.21 | P18: 0.01093916452 | Q18: 0.00408037299
A19: C | B19: 30 | C19: 0.07 | D19: 150 | E19: 150 | F19: 150 | G19: Yes | H19: No | J19: 5000 | K19: LDT2 only | L19: 0.03 | M19: 0.025 | N19: 125 | O19: 350 | P19: 0.001775492522 | Q19: 0.001324538398
L81: =IF(A81="","",IF(B81=160,0.16,IF(B81=125,0.125,IF(B81=110,0.11,IF(B81=85,0.085,IF(B81="FED SULEV30",0.03,IF(B81=70,0.07,IF(B81=50,0.05,IF(B81=30,0.03,IF(B81=20,0.02,IF(B81=0,0,"n/a"))))))))))) ->  | M81: =IF(L81="","",MAX(0,L81-IF(G81="Yes",0.005,0))-IF(H81="Yes",I81,0)) ->  | N81: =IF(A81="","",IF(OR(B81="",C81=""),"FIX BIN",J81*M81)) ->  | O81: =IF(A81="","",IF(OR(B81="",C81=""),"FIX BIN",IFERROR(J81*C81,""))) ->  | P81: =IF(A81="","",IF(OR(B81="",C81=""),ERROR.TYPE(3),IFERROR(N81/$G$10,""))) ->  | Q81: =IF(A81="","",IF(OR(B81="",C81=""),ERROR.TYPE(3),IFERROR(O81/$G$11,""))) -> 
L145: =IF(A145="","",IF(B145=160,0.16,IF(B145=125,0.125,IF(B145=110,0.11,IF(B145=85,0.085,IF(B145="FED SULEV30",0.03,IF(B145=70,0.07,IF(B145=50,0.05,IF(B145=30,0.03,IF(B145=20,0.02,IF(B145=0,0,"n/a"))))))))))) ->  | M145: =IF(L145="","",MAX(0,L145-IF(G145="Yes",0.005,0))-IF(H145="Yes",I145,0)) ->  | N145: =IF(A145="","",IF(OR(B145="",C145=""),"FIX BIN",J145*M145)) ->  | O145: =IF(A145="","",IF(OR(B145="",C145=""),"FIX BIN",IFERROR(J145*C145,""))) ->  | P145: =IF(A145="","",IF(OR(B145="",C145=""),ERROR.TYPE(3),IFERROR(N145/$G$10,""))) ->  | Q145: =IF(A145="","",IF(OR(B145="",C145=""),ERROR.TYPE(3),IFERROR(O145/$G$11,""))) -> 
L209: =IF(A209="","",IF(B209=160,0.16,IF(B209=125,0.125,IF(B209=110,0.11,IF(B209=85,0.085,IF(B209="FED SULEV30",0.03,IF(B209=70,0.07,IF(B209=50,0.05,IF(B209=30,0.03,IF(B209=20,0.02,IF(B209=0,0,"n/a"))))))))))) ->  | M209: =IF(L209="","",MAX(0,L209-IF(G209="Yes",0.005,0))-IF(H209="Yes",I209,0)) ->  | N209: =IF(A209="","",IF(OR(B209="",C209=""),"FIX BIN",J209*M209)) ->  | O209: =IF(A209="","",IF(OR(B209="",C209=""),"FIX BIN",IFERROR(J209*C209,""))) ->  | P209: =IF(A209="","",IF(OR(B209="",C209=""),ERROR.TYPE(3),IFERROR(N209/$G$10,""))) ->  | Q209: =IF(A209="","",IF(OR(B209="",C209=""),ERROR.TYPE(3),IFERROR(O209/$G$11,""))) -> 
L273: =IF(A273="","",IF(B273=160,0.16,IF(B273=125,0.125,IF(B273=110,0.11,IF(B273=85,0.085,IF(B273="FED SULEV30",0.03,IF(B273=70,0.07,IF(B273=50,0.05,IF(B273=30,0.03,IF(B273=20,0.02,IF(B273=0,0,"n/a"))))))))))) ->  | M273: =IF(L273="","",MAX(0,L273-IF(G273="Yes",0.005,0))-IF(H273="Yes",I273,0)) ->  | N273: =IF(A273="","",IF(OR(B273="",C273=""),"FIX BIN",J273*M273)) ->  | O273: =IF(A273="","",IF(OR(B273="",C273=""),"FIX BIN",IFERROR(J273*C273,""))) ->  | P273: =IF(A273="","",IF(OR(B273="",C273=""),ERROR.TYPE(3),IFERROR(N273/$G$10,""))) ->  | Q273: =IF(A273="","",IF(OR(B273="",C273=""),ERROR.TYPE(3),IFERROR(O273/$G$11,""))) -> 
L337: =IF(A337="","",IF(B337=160,0.16,IF(B337=125,0.125,IF(B337=110,0.11,IF(B337=85,0.085,IF(B337="FED SULEV30",0.03,IF(B337=70,0.07,IF(B337=50,0.05,IF(B337=30,0.03,IF(B337=20,0.02,IF(B337=0,0,"n/a"))))))))))) ->  | M337: =IF(L337="","",MAX(0,L337-IF(G337="Yes",0.005,0))-IF(H337="Yes",I337,0)) ->  | N337: =IF(A337="","",IF(OR(B337="",C337=""),"FIX BIN",J337*M337)) ->  | O337: =IF(A337="","",IF(OR(B337="",C337=""),"FIX BIN",IFERROR(J337*C337,""))) ->  | P337: =IF(A337="","",IF(OR(B337="",C337=""),ERROR.TYPE(3),IFERROR(N337/$G$10,""))) ->  | Q337: =IF(A337="","",IF(OR(B337="",C337=""),ERROR.TYPE(3),IFERROR(O337/$G$11,""))) -> 
L401: =IF(A401="","",IF(B401=160,0.16,IF(B401=125,0.125,IF(B401=110,0.11,IF(B401=85,0.085,IF(B401="FED SULEV30",0.03,IF(B401=70,0.07,IF(B401=50,0.05,IF(B401=30,0.03,IF(B401=20,0.02,IF(B401=0,0,"n/a"))))))))))) ->  | M401: =IF(L401="","",MAX(0,L401-IF(G401="Yes",0.005,0))-IF(H401="Yes",I401,0)) ->  | N401: =IF(A401="","",IF(OR(B401="",C401=""),"FIX BIN",J401*M401)) ->  | O401: =IF(A401="","",IF(OR(B401="",C401=""),"FIX BIN",IFERROR(J401*C401,""))) ->  | P401: =IF(A401="","",IF(OR(B401="",C401=""),ERROR.TYPE(3),IFERROR(N401/$G$10,""))) ->  | Q401: =IF(A401="","",IF(OR(B401="",C401=""),ERROR.TYPE(3),IFERROR(O401/$G$11,""))) -> 
L465: =IF(A465="","",IF(B465=160,0.16,IF(B465=125,0.125,IF(B465=110,0.11,IF(B465=85,0.085,IF(B465="FED SULEV30",0.03,IF(B465=70,0.07,IF(B465=50,0.05,IF(B465=30,0.03,IF(B465=20,0.02,IF(B465=0,0,"n/a"))))))))))) ->  | M465: =IF(L465="","",MAX(0,L465-IF(G465="Yes",0.005,0))-IF(H465="Yes",I465,0)) ->  | N465: =IF(A465="","",IF(OR(B465="",C465=""),"FIX BIN",J465*M465)) ->  | O465: =IF(A465="","",IF(OR(B465="",C465=""),"FIX BIN",IFERROR(J465*C465,""))) ->  | P465: =IF(A465="","",IF(OR(B465="",C465=""),ERROR.TYPE(3),IFERROR(N465/$G$10,""))) ->  | Q465: =IF(A465="","",IF(OR(B465="",C465=""),ERROR.TYPE(3),IFERROR(O465/$G$11,""))) -> 

Sheet FTP 120k NMOG+NOX Summary
A1: Example Template - Banking & Trading 120K Summary Table- FTP NMOG+NOX
A2: Manufacturer: _______________ | H2: Date:_______________
A4: Purpose and Scope of this Guidance Document
A5: This document was prepared by EPA's Office of Transportation and Air Quality (OTAQ). It is one of several intended to aid regulated parties in reporting Tier 3 and Cold NMHC Averaging, Banking and Trading (AB&T) information and calculating AB&T fleet average credits for light-duty vehicles and certain heavy-duty class 2b and 3 vehicles, ref. 40 CFR 86.1862-04(c). It contains EPA's recommended format for manufacturers to report to EPA their end-of-year Tier 3 AB&T calculations, credits and other information with respect to the implementation of the AB&T provisions of the EPA Tier 3 final rule (79 FR 23414, April 28, 2014) as amended (80 FR 9078, February 19, 2015; 80 FR 26463, May 8, 2015); ref. 40 CFR Parts 85, 86, 600, 1065, 1066. Use of this document is purely optional. This document does not in any way alter or waive the requirements in EPA regulations. Although the calculations and formulas provided in this document are intended to assist manufacturers in the implementation of EPA regulations, this document does not establish or change the legal rights or obligations of manufacturers or others in complying with EPA regulations, including 40 CFR 86.1862-04(c). If an error or other discrepancy is found in this document, including the calculation formulas, please contact your EPA certification team member or Dave Good at (734) 214-4450 or by email at good.david@epa.gov. The regulations take precedence.
B7: Instructions | K7: OMB Control Number 2060-0104
A8: Select Model Year: | D8: 2017 | G8: Enter "X" to indicate method used to calculate 2015-2017 Early Credits: | K8: Expires 3-31-2020
A9: Select Type of Report: | D9: Final Model Year Report | G9: Method (Check only one) | J9: J. Check one, if applicable:
A10: Select Program: | D10: 120k Useful Life | G10: §86.1811-17(b)(10) & (b)(11)(ix) (e.g. EPA Early Credit Calculator on web)
B11: Small Volume? | D11: No | G11: §86.1811-17(b)(11)(ix) & §86.1861; (Compare Bin to §86.1811-17(b)(11) Stds) | J11: X | K11: =IF(AND(J10="X", J11="X"), "ERROR in Cells J10 and J11---Can't use both methods of generating early credits, ref. §86.1817-11(b)(11)(ix)", "") -> 
D14: If using the §86.1811-17(b)(10) & (b)(11)(ix) method, enter the results from the EPA Early Credit Calculator on web here:
E15: End of Model Year 2017 credit banks (Early Tier 3 and true Tier 3 credits)
G17: Fleet Credit or (Debits)
G18: Model Year | H18: MY15e | I18: MY16e | J18: MY17e and MY17
G19: Capped / Settled Early Tier 3 bank | H19: 485 | I19: 485 | J19: Not Applicable
G20: Tier 3 bank | J20: 500
D22: Fleet Average Compliance Level | G22: G. Credit (Debit) [Calc from J10, J11, D,E,F] | H22: Date Credits/ Debits were earned | I22: Date Credits will expire | J22: Last Date When Credits can be Traded | K22: Comments
A23: A. Date of Transaction | B23: B. Model Year | C23: C. Category | D23: D. Applicable FTP Standards | E23: E. Mfr FTP Compliance Level | F23: F. Production Volume
D24: gram/mi | E24: gram/mi | F24: units | G24: gram/mi
A26: 2015 Early Credits:
A27: 2018-05-01 | B27: 2015 | C27: LDV/LDT/MDPV | D27: Not Applicable | G27: =IF(AND(J10="X", J11="X"), "ERROR",IF(J10="X", H19, 0)) -> 0 | H27: 2015-12-31 | I27: =DATE(YEAR(H27)+5,MONTH(H27),DAY(H27)) -> 2020-12-31 | J27: 2020-12-31 | K27: 2015 Early FTP Credits from attached EPA Early Credits AB&T work sheet; ref. https://www.epa.gov/regulations-emissions-vehicles-and-engines/final-rule-control-air-pollution-motor-vehicles-tier-3#additional-resources
A28: 2016-05-01 | B28: 2015 | C28: LDV/LDT1 | D28: 0.1 | E28: 0.02 | F28: 23090 | G28: =IF(AND(J10="X", J11="X"), "ERROR",IF(J11<>"X",0,astm((astm(D28,3)-(astm(E28,3)))*F28,0))) -> 1847 | H28: 2015-12-31 | I28: =DATE(YEAR(H28)+8,MONTH(H28),DAY(H28)) -> 2023-12-31 | J28: 2020-12-31 | K28: 2015 Early Tier 3 FTP Credits earned per 40 CFR 86.1811-17(b)(11); see 2015 LDV/LDT1 spreadsheet. Note that test groups certified to Bin 70 or lower were certified to a 150,000 mile useful life; ref. 86.1811-17-(b)(11)(vii).
D29: Total 2015 Early Credits Remaining: | G29: =SUM(G27:G28) -> 1847
A30: 2016 Early Credits:
A31: 2018-05-01 | B31: 2016 | C31: LDV/LDT/MDPV | D31: Not Applicable | G31: =IF(AND(J10="X", J11="X"), "ERROR",IF(J10="X", I19, 0)) -> 0 | H31: 2016-12-31 | I31: =DATE(YEAR(H31)+5,MONTH(H31),DAY(H31)) -> 2021-12-31 | J31: 2021-12-31 | K31: 2016 Early FTP Credits from attached EPA Early Credits AB&T work sheet; ref. https://www.epa.gov/regulations-emissions-vehicles-and-engines/final-rule-control-air-pollution-motor-vehicles-tier-3#additional-resources
A32: 2017-05-01 | B32: 2016 | C32: LDV/LDT1 | D32: 0.093 | E32: 0.02 | F32: 51101 | G32: =IF(AND(J10="X", J11="X"), "ERROR",IF(J11<>"X",0,astm((astm(D32,3)-(astm(E32,3)))*F32,0))) -> 3730 | H32: 2016-12-31 | I32: =DATE(YEAR(H32)+8,MONTH(H32),DAY(H32)) -> 2024-12-31 | J32: 2021-12-31 | K32: 2016 Early Tier 3 FTP Credits earned per 40 CFR 86.1811-17(b)(11); see 2015 LDV/LDT1 spreadsheet. Note that test groups certified to Bin 70 or lower were certified to a 150,000 mile useful life; ref. 86.1811-17-(b)(11)(vii).
D33: Total 2016 Early Credits Remaining: | G33: =SUM(G31:G32) -> 3730
C35: Total 2015-2016 Early Credits Remaining: | G35: =G29+G33 -> 5577
A37: 2017 Credits:
A38: 2018-05-01 | B38: 2017 | C38: LDV/LDT/MDPV | D38: Not Applicable | G38: =IF(AND(J10="X", J11="X"), "ERROR",IF(J10="X",J20, 0)) -> 0 | H38: 2017-12-31 | I38: =IF(H38="", "", IF( AND( (H38)>DATE(2017,12,30), (H38)< DATE(2025,1,1) ), (MIN(DATE(YEAR(H38)+8,MONTH(H38),DAY(H38)), "12/31/2030")), DATE(YEAR(H38)+5,MONTH(H38),DAY(H38)))) -> 2025-12-31 | J38: =DATE(YEAR(H38)+5,MONTH(I38),DAY(I38)) -> 2022-12-31 | K38: 2017 Tier 3 FTP Credits from attached EPA Early Credits AB&T work sheet; ref. https://www.epa.gov/regulations-emissions-vehicles-and-engines/final-rule-control-air-pollution-motor-vehicles-tier-3#additional-resources
A39: 2018-05-01 | B39: 2017 | C39: LDV/LDT1 | D39: ='LDV,LDT1'!I11 -> 0.073 | E39: ='LDV,LDT1'!H11 -> 0.099 | F39: ='LDV,LDT1'!G11 -> 250000 | G39: =IF(AND(J10="X", J11="X"), "ERROR",IF(J10="X",0,astm((astm(D39,3)-(astm(E39,3)))*F39,0))) -> -6500 | H39: 2017-12-31 | I39: =DATE(YEAR(H39)+8,MONTH(H39),DAY(H39)) -> 2025-12-31 | J39: 2021-12-31
A40: 2018-02-06 | B40: 2017 | C40: Transfer | D40: - | E40: - | F40: - | G40: 10000 | H40: 2017-12-31 | I40: - | J40: - | K40: Purchased 10,000 2017 120K FTP credits from Manufacture B. (Credits were earned on 12/31/2017.)
D41: Total 2017 Credits Remaining: | G41: =SUM(G38:G40) -> 3500
A43: 2018 Credits:
A44: 2019-05-01 | B44: 2018 | C44: LDV/LDT1 | G44: =astm((astm(D44,3)-(astm(E44,3)))*F44,0) -> 0
B45: 2018 | C45: Transfer | D45: - | E45: - | F45: - | I45: - | J45: -
D46: Total 2018 Credits Remaining: | G46: =SUM(G44:G45) -> 0
A48: 2019 Credits:
A49: 2020-05-01 | B49: 2019 | C49: LDV/LDT1 | G49: =astm((astm(D49,3)-(astm(E49,3)))*F49,0) -> 0
B50: 2019 | C50: Transfer | D50: - | E50: - | F50: - | I50: - | J50: -
D51: Total 2019 Credits Remaining: | G51: =SUM(G49:G50) -> 0
C53: Grand Total 2015-2019 Credits Remaining: | G53: =G35+G41+G46+G51 -> 9077

Sheet FTP 150k NMOG+NOX Summary
A1: Example Template - Banking & Trading 150K Summary Table- FTP NMOG+NOX
A2: Manufacturer: _______________________ | K2: Date:_______________
A4: Purpose and Scope of this Guidance Document
A5: This document was prepared by EPA's Office of Transportation and Air Quality (OTAQ). It is one of several intended to aid regulated parties in reporting Tier 3 and Cold NMHC Averaging, Banking and Trading (AB&T) information and calculating AB&T fleet average credits for light-duty vehicles and certain heavy-duty class 2b and 3 vehicles, ref. 40 CFR 86.1862-04(c). It contains EPA's recommended format for manufacturers to report to EPA their end-of-year Tier 3 AB&T calculations, credits and other information with respect to the implementation of the AB&T provisions of the EPA Tier 3 final rule (79 FR 23414, April 28, 2014) as amended (80 FR 9078, February 19, 2015; 80 FR 26463, May 8, 2015); ref. 40 CFR Parts 85, 86, 600, 1065, 1066. Use of this document is purely optional. This document does not in any way alter or waive the requirements in EPA regulations. Although the calculations and formulas provided in this document are intended to assist manufacturers in the implementation of EPA regulations, this document does not establish or change the legal rights or obligations of manufacturers or others in complying with EPA regulations, including 40 CFR 86.1862-04(c). If an error or other discrepancy is found in this document, including the calculation formulas, please contact your EPA certification team member or Dave Good at (734) 214-4450 or by email at good.david@epa.gov. The regulations take precedence.
B7: Instructions | K7: OMB Control Number 2060-0104
A8: Select Model Year: | D8: 2017 | G8: Enter "X" to indicate method used to calculate 2015-2017 Early Credits: | K8: Expires 3-31-2020
A9: Select Type of Report: | D9: Final Model Year Report | G9: Method (Check only one) | J9: J. Check one, if applicable:
A10: Select Program: | D10: 150k Useful Life | G10: §86.1811-17(b)(10) & (b)(11)(ix) (e.g. EPA Early Credit Calculator on web) | J10: X
B11: Small Volume? | D11: No | G11: §86.1811-17(b)(11)(ix) & §86.1861; (Compare Bin to §86.1811-17(b)(11) Stds) | K11: =IF(AND(J10="X", J11="X"), "ERROR in Cells J10 and J11---Can't use both methods of generating early credits, ref. §86.1817-11(b)(11)(ix)", "") -> 
D14: If using the §86.1811-17(b)(10) & (b)(11)(ix) method, enter the results from the EPA Early Credit Calculator on web here:
E15: End of Model Year 2017 credit banks (Early Tier 3 and true Tier 3 credits)
G17: Fleet Credit or (Debits)
G18: Model Year | H18: MY15e | I18: MY16e | J18: MY17e and MY17
G19: Capped / Settled Early Tier 3 bank | H19: 372 | I19: 651 | J19: 93
G20: Tier 3 bank | J20: 100
D22: Fleet Average Compliance Level | G22: G. Credit (Debit) [Calc from J10, J11, D,E,F] | H22: Date Credits/ Debits were earned | I22: Date Credits will expire | J22: Last Date When Credits can be Traded | K22: Comments
A23: A. Date of Transaction | B23: B. Model Year | C23: C. Category | D23: D. Applicable FTP Standards | E23: E. Mfr FTP Compliance Level | F23: F. Production Volume
D24: gram/mi | E24: gram/mi | F24: units | G24: gram/mi
A26: 2015 Early Credits:
A27: 2018-05-01 | B27: 2015 | C27: LDV/LDT/MDPV | D27: Not Applicable | G27: =IF(AND(J10="X", J11="X"), "ERROR",IF(J10="X", H19, 0)) -> 372 | H27: 2015-12-31 | I27: =DATE(YEAR(H27)+5,MONTH(H27),DAY(H27)) -> 2020-12-31 | J27: =DATE(YEAR(H27)+5,MONTH(I27),DAY(I27)) -> 2020-12-31 | K27: 2015 Early FTP Credits from attached EPA Early Credits AB&T work sheet; ref. https://www.epa.gov/regulations-emissions-vehicles-and-engines/final-rule-control-air-pollution-motor-vehicles-tier-3#additional-resources
A28: 2016-05-01 | B28: 2015 | C28: LDV/LDT1 | D28: 0.1 | E28: 0.02 | F28: 10002 | G28: =IF(AND(J10="X", J11="X"), "ERROR",IF(J11<>"X",0,astm((astm(D28,3)-(astm(E28,3)))*F28,0))) -> 0 | H28: 2015-12-31 | I28: =DATE(YEAR(H28)+8,MONTH(H28),DAY(H28)) -> 2023-12-31 | J28: =DATE(YEAR(H28)+5,MONTH(I28),DAY(I28)) -> 2020-12-31 | K28: 2015 Early Tier 3 FTP Credits earned per 40 CFR 86.1811-17(b)(11); see 2015 LDV/LDT1 spreadsheet.
A29: 2016-05-01 | B29: 2015 | C29: LDT2/HLDT/MDPV | D29: 0.119 | E29: 0.05 | F29: 1000 | G29: =IF(AND(J10="X", J11="X"), "ERROR",IF(J11<>"X",0,astm((astm(D29,3)-(astm(E29,3)))*F29,0))) -> 0 | H29: 2015-12-31 | I29: 2023-12-31 | J29: =DATE(YEAR(H29)+5,MONTH(I29),DAY(I29)) -> 2020-12-31 | K29: 2015 Early Tier 3 FTP Credits earned per 40 CFR 86.1811-17(b)(11); see 2015 LDT2/HLDT/MDPV spreadsheet.
B30: 2015 | C30: Transfer | D30: - | E30: - | F30: - | H30: - | I30: - | J30: -
D31: Total 2015 Early Credits Remaining: | G31: =SUM(G27:G30) -> 372
A32: 2016 Early Credits:
A33: 2018-05-01 | B33: 2016 | C33: LDV/LDT/MDPV | D33: Not Applicable | G33: =IF(AND(J10="X", J11="X"), "ERROR",IF(J10="X", I19, 0)) -> 651 | H33: 2016-12-31 | I33: =DATE(YEAR(H33)+5,MONTH(H33),DAY(H33)) -> 2021-12-31 | J33: =DATE(YEAR(H33)+5,MONTH(I33),DAY(I33)) -> 2021-12-31 | K33: 2016 Early Credits from attached EPA Early Credits AB&T work sheet; ref. https://www.epa.gov/regulations-emissions-vehicles-and-engines/final-rule-control-air-pollution-motor-vehicles-tier-3#additional-resources
A34: 2017-05-01 | B34: 2016 | C34: LDV/LDT1 | D34: 0.093 | E34: 0.02 | F34: 21784 | G34: =IF(AND(J10="X", J11="X"), "ERROR",IF(J11<>"X",0,astm((astm(D34,3)-(astm(E34,3)))*F34,0))) -> 0 | H34: 2016-12-31 | I34: =DATE(YEAR(H34)+8,MONTH(H34),DAY(H34)) -> 2024-12-31 | J34: =DATE(YEAR(H34)+5,MONTH(I34),DAY(I34)) -> 2021-12-31 | K34: 2016 Early Tier 3 FTP Credits earned per 40 CFR 86.1811-17(b)(11); see 2016 LDV/LDT1 spreadsheet.
A35: 2017-05-01 | B35: 2016 | C35: LDT2/HLDT/MDPV | D35: 0.11 | E35: 0.05 | F35: 1000 | G35: =IF(AND(J10="X", J11="X"), "ERROR",IF(J11<>"X",0,astm((astm(D35,3)-(astm(E35,3)))*F35,0))) -> 0 | H35: 2016-12-31 | I35: =DATE(YEAR(H35)+8,MONTH(H35),DAY(H35)) -> 2024-12-31 | J35: =DATE(YEAR(H35)+5,MONTH(I35),DAY(I35)) -> 2021-12-31 | K35: 2016 Early Tier 3 FTP Credits earned per 40 CFR 86.1811-17(b)(11); see 2016 LDT2/HLDT/MDPV spreadsheet.
B36: 2016 | C36: Transfer | D36: - | E36: - | F36: - | H36: - | I36: - | J36: -
D37: Total 2016 Early Credits Remaining: | G37: =SUM(G33:G36) -> 651
A38: 2017 Early Credits:
A39: 2018-05-01 | B39: 2017 | C39: LDV/LDT/MDPV | D39: Not Applicable | G39: =IF(AND(J10="X", J11="X"), "ERROR",IF(J10="X", J19, 0)) -> 93 | H39: 2017-12-31 | I39: =DATE(YEAR(H39)+5,MONTH(H39),DAY(H39)) -> 2022-12-31 | J39: =DATE(YEAR(H39)+5,MONTH(I39),DAY(I39)) -> 2022-12-31 | K39: 2017 Early FTP Credits from attached EPA Early Credits AB&T work sheet; ref. https://www.epa.gov/regulations-emissions-vehicles-and-engines/final-rule-control-air-pollution-motor-vehicles-tier-3#additional-resources
A40: 2018-05-01 | B40: 2017 | C40: HLDT/MDPV | D40: 0.101 | E40: 0.05 | F40: 1000 | G40: =IF(AND(J10="X", J11="X"), "ERROR",IF(J11<>"X",0,astm((astm(D40,3)-(astm(E40,3)))*F40,0))) -> 0 | H40: 2017-12-31 | I40: =DATE(YEAR(H40)+5,MONTH(H40),DAY(H40)) -> 2022-12-31 | J40: =DATE(YEAR(H40)+5,MONTH(I40),DAY(I40)) -> 2022-12-31 | K40: 2017 Early Tier 3 FTP Credits earned per 40 CFR 86.1811-17(b)(11); see separate 2017 HLDT/MDPV spreadsheet.
B41: 2017 | C41: Transfer | D41: - | E41: - | F41: - | H41: - | I41: - | J41: -
D42: Total 2017 Early Credits Remaining: | G42: =SUM(G39:G41) -> 93
C44: Total 2015-2017 Early Credits Remaining: | G44: =SUM(G31+G37+G42) -> 1116
A46: 2017 Credits:
A47: 2018-05-01 | B47: 2017 | C47: LDV/LDT/MDPV | D47: Not Applicable | G47: =IF(AND(J10="X", J11="X"), "ERROR",IF(J10="X", J20, 0)) -> 100 | H47: 2017-12-31 | I47: =IF(H47="", "", IF( AND( (H47)>DATE(2017,12,30), (H47)< DATE(2025,1,1) ), (MIN(DATE(YEAR(H47)+8,MONTH(H47),DAY(H47)), "12/31/2030")), DATE(YEAR(H47)+5,MONTH(H47),DAY(H47)))) -> 2025-12-31 | J47: =DATE(YEAR(H47)+5,MONTH(I47),DAY(I47)) -> 2022-12-31 | K47: 2017 Tier 3 FTP Credits from attached EPA Early Credits AB&T work sheet; ref. https://www.epa.gov/regulations-emissions-vehicles-and-engines/final-rule-control-air-pollution-motor-vehicles-tier-3#additional-resources
A48: 2018-05-01 | B48: 2017 | C48: LDV/LDT1 | D48: ='LDV,LDT1'!O11 -> 0.086 | E48: ='LDV,LDT1'!N11 -> 0.052 | F48: ='LDV,LDT1'!M11 -> 283840 | G48: =IF(AND(J10="X", J11="X"), "ERROR",IF(J10="X",0,astm((astm(D48,3)-(astm(E48,3)))*F48,0))) -> 0 | H48: 2017-12-31 | I48: =IF(H48="", "", IF( AND( (H48)>DATE(2017,12,30), (H48)< DATE(2025,1,1) ), (MIN(DATE(YEAR(H48)+8,MONTH(H48),DAY(H48)), "12/31/2030")), DATE(YEAR(H48)+5,MONTH(H48),DAY(H48)))) -> 2025-12-31 | J48: =DATE(YEAR(H48)+5,MONTH(I48),DAY(I48)) -> 2022-12-31
A49: 2018-05-01 | B49: 2017 | C49: LDT2/HLDT/MDPV | D49: ='LDT2,HLDT,MDPV'!I10 -> 0.101 | E49: ='LDT2,HLDT,MDPV'!H10 -> 0.12 | F49: ='LDT2,HLDT,MDPV'!G10 -> 70403 | G49: =IF(AND(J10="X", J11="X"), "ERROR",IF(J10="X",0,astm((astm(D49,3)-(astm(E49,3)))*F49,0))) -> 0 | H49: 2017-12-31 | I49: =IF(H49="", "", IF( AND( (H49)>DATE(2017,12,30), (H49)< DATE(2025,1,1) ), (MIN(DATE(YEAR(H49)+8,MONTH(H49),DAY(H49)), "12/31/2030")), DATE(YEAR(H49)+5,MONTH(H49),DAY(H49)))) -> 2025-12-31 | J49: =DATE(YEAR(H49)+5,MONTH(I49),DAY(I49)) -> 2022-12-31 | K49: LDT2 only
A50: 2018-07-04 | B50: 2017 | C50: Transfer | D50: - | E50: - | F50: - | G50: -50 | H50: 2017-12-31 | I50: - | J50: - | K50: Sold 50 2017 150K FTP Credits to Manufacturer C (earned on 12/31/2017).
D51: Total 2017 Credits Remaining: | G51: =IF(AND(J10="X", J11="X"), "ERROR",SUM(G47:G50)) -> 50
A53: 2018 Credits:
A54: 2019-05-01 | B54: 2018 | C54: LDV/LDT1 | G54: =astm((astm(D54,3)-(astm(E54,3)))*F54,0) -> 0 | I54: =IF(H54="", "", IF( AND( (H54)>DATE(2017,12,30), (H54)< DATE(2025,1,1) ), (MIN(DATE(YEAR(H54)+8,MONTH(H54),DAY(H54)), "12/31/2030")), DATE(YEAR(H54)+5,MONTH(H54),DAY(H54)))) -> 
A55: 2019-05-01 | B55: 2018 | C55: LDT2/HLDT/MDPV | G55: =astm((astm(D55,3)-(astm(E55,3)))*F55,0) -> 0 | I55: =IF(H55="", "", IF( AND( (H55)>DATE(2017,12,30), (H55)< DATE(2025,1,1) ), (MIN(DATE(YEAR(H55)+8,MONTH(H55),DAY(H55)), "12/31/2030")), DATE(YEAR(H55)+5,MONTH(H55),DAY(H55)))) -> 
B56: 2018 | C56: Transfer | D56: - | E56: - | F56: - | I56: - | J56: -
D57: Total 2018 Credits Remaining: | G57: =SUM(G54:G56) -> 0
A59: 2019 Credits:
A60: 2020-05-01 | B60: 2019 | C60: LDV/LDT1 | G60: =astm((astm(D60,3)-(astm(E60,3)))*F60,0) -> 0 | I60: =IF(H60="", "", IF( AND( (H60)>DATE(2017,12,30), (H60)< DATE(2025,1,1) ), (MIN(DATE(YEAR(H60)+8,MONTH(H60),DAY(H60)), "12/31/2030")), DATE(YEAR(H60)+5,MONTH(H60),DAY(H60)))) -> 
A61: 2020-05-01 | B61: 2019 | C61: LDT2/HLDT/MDPV | G61: =astm((astm(D61,3)-(astm(E61,3)))*F61,0) -> 0 | I61: =IF(H61="", "", IF( AND( (H61)>DATE(2017,12,30), (H61)< DATE(2025,1,1) ), (MIN(DATE(YEAR(H61)+8,MONTH(H61),DAY(H61)), "12/31/2030")), DATE(YEAR(H61)+5,MONTH(H61),DAY(H61)))) -> 
B62: 2019 | C62: Transfer | D62: - | E62: - | F62: - | I62: - | J62: -
D63: Total 2019 Credits Remaining: | G63: =SUM(G60:G62) -> 0
C65: Grand Total 2015-2019 Credits Remaining: | G65: =G44+G51+G57+G63 -> 1166

Sheet SFTP 120k NMOG+NOX Summary
A1: Example Template - Banking & Trading 120K Summary Table- SFTP NMOG+NOX
A2: Manufacturer: _______________ | H2: Date:_______________
A4: Purpose and Scope of this Guidance Document
A5: This document was prepared by EPA's Office of Transportation and Air Quality (OTAQ). It is one of several intended to aid regulated parties in reporting Tier 3 and Cold NMHC Averaging, Banking and Trading (AB&T) information and calculating AB&T fleet average credits for light-duty vehicles and certain heavy-duty class 2b and 3 vehicles, ref. 40 CFR 86.1862-04(c). It contains EPA's recommended format for manufacturers to report to EPA their end-of-year Tier 3 AB&T calculations, credits and other information with respect to the implementation of the AB&T provisions of the EPA Tier 3 final rule (79 FR 23414, April 28, 2014) as amended (80 FR 9078, February 19, 2015; 80 FR 26463, May 8, 2015); ref. 40 CFR Parts 85, 86, 600, 1065, 1066. Use of this document is purely optional. This document does not in any way alter or waive the requirements in EPA regulations. Although the calculations and formulas provided in this document are intended to assist manufacturers in the implementation of EPA regulations, this document does not establish or change the legal rights or obligations of manufacturers or others in complying with EPA regulations, including 40 CFR 86.1862-04(c). If an error or other discrepancy is found in this document, including the calculation formulas, please contact your EPA certification team member or Dave Good at (734) 214-4450 or by email at good.david@epa.gov. The regulations take precedence.
A7: Select Model Year: | D7: 2017 | K7: OMB Control Number 2060-0104
A8: Select Type of Report: | D8: Final Model Year Report | K8: Expires 3-31-2020
A9: Select Program: | D9: 120k Useful Life
B10: Small Volume? | D10: No
D12: Fleet Average Compliance Level | G12: G. Credit (Debit) [Calc from D,E,F] | H12: Date Credits/ Debits were earned | I12: Date Credits will expire | J12: Last Date When Credits can be Traded | K12: Comments
A13: A. Date of Trans-action | B13: B. Model Year | C13: C. Category | D13: D. Applicable SFTP Standards | E13: E. Mfr SFTP Compliance Level | F13: F. Production Volume
D14: gram/mi | E14: gram/mi | F14: units | G14: gram/mi
A16: 2015 Early Credits:
A17: 2016-05-01 | B17: 2015 | C17: LDV/LDT1 | D17: 0.14 | E17: 0.05 | F17: 23090 | G17: =astm((astm(D17,3)-(astm(E17,3)))*F17,0) -> 2078 | H17: 2015-12-31 | I17: =DATE(YEAR(H17)+5,MONTH(H17),DAY(H17)) -> 2020-12-31 | J17: 2020-12-31 | K17: 2015 Early Tier 3 SFTP Credits earned per 40 CFR 86.1811-17(b)(11); see 2015 LDV/LDT1 spreadsheet. Note that test groups certified to Bin 70 or lower were certified to a 150,000 mile useful life; ref. 86.1811-17-(b)(11)(vii).
A18: 2017-12-31 | B18: 2015 | C18: Transfer | D18: Not Applicable | G18: -2078 | H18: 2017-12-31 | I18: - | J18: - | K18: Transferred to 2017 model year
D19: Total 2015 Early Credits Remaining: | G19: =SUM(G17:G18) -> 0
A20: 2016 Early Credits:
A21: 2017-05-01 | B21: 2016 | C21: LDV/LDT1 | D21: 0.11 | E21: 0.05 | F21: 51101 | G21: =astm((astm(D21,3)-(astm(E21,3)))*F21,0) -> 3066 | H21: 2016-12-31 | I21: =DATE(YEAR(H21)+5,MONTH(H21),DAY(H21)) -> 2021-12-31 | J21: 2021-12-31 | K21: 2016 Early Tier 3 SFTP Credits earned per 40 CFR 86.1811-17(b)(11); see 2016 LDV/LDT1 spreadsheet. Note that test groups certified to Bin 70 or lower were certified to a 150,000 mile useful life; ref. 86.1811-17-(b)(11)(vii).
A22: 2017-12-31 | B22: 2016 | C22: Transfer | D22: - | E22: - | F22: - | G22: =0-G21 -> -3066 | H22: 2017-12-31 | I22: - | J22: - | K22: Transferred to 2017 model year
D23: Total 2016 Early Credits Remaining: | G23: =SUM(G21:G22) -> 0
C25: Total 2015-2016 Early Credits Remaining: | G25: =G19+G23 -> 0
A27: 2017 Credits:
A28: 2018-05-01 | B28: 2017 | C28: LDV/LDT1 | D28: ='LDV,LDT1'!I12 -> 0.103 | E28: ='LDV,LDT1'!H12 ->  | F28: ='LDV,LDT1'!G12 -> 210000 | G28: =astm((astm(D28,3)-(astm(E28,3)))*F28,0) ->  | H28: 2017-12-31 | I28: =DATE(YEAR(H28)+5,MONTH(H28),DAY(H28)) -> 2022-12-31 | J28: 2022-12-31
A29: 2017-12-31 | B29: 2017 | C29: Transfer | D29: - | E29: - | F29: - | G29: =G17 -> 2078 | H29: 2015-12-31 | I29: - | J29: - | K29: Transferred from 2015 model year
A30: 2017-12-31 | B30: 2017 | C30: Transfer | D30: - | E30: - | F30: - | G30: =G21 -> 3066 | H30: 2016-12-31 | I30: - | J30: - | K30: Transferred from 2016 model year
A31: 2018-02-06 | B31: 2017 | C31: Transfer | D31: - | E31: - | F31: - | G31: 10000 | H31: 2017-12-31 | I31: - | J31: - | K31: Purchased 10,000 2017 120K SFTP credits from Manufacture B. (Credits were earned on 12/31/2017.)
D32: Total 2017 Credits Remaining: | G32: =SUM(G28:G31) -> 
A34: 2018 Credits:
A35: 2019-05-01 | B35: 2018 | C35: LDV/LDT1 | G35: =astm((astm(D35,3)-(astm(E35,3)))*F35,0) -> 0
B36: 2018 | C36: Transfer | D36: - | E36: - | F36: - | I36: - | J36: -
D37: Total 2018 Credits Remaining: | G37: =SUM(G35:G36) -> 0
A39: 2019 Credits:
A40: 2020-05-01 | B40: 2019 | C40: LDV/LDT1 | G40: =astm((astm(D40,3)-(astm(E40,3)))*F40,0) -> 0
B41: 2019 | C41: Transfer | D41: - | E41: - | F41: - | I41: - | J41: -
D42: Total 2019 Credits Remaining: | G42: =SUM(G40:G41) -> 0
C44: Grand Total 2015-2019 Credits Remaining: | G44: =G25+G32+G37+G42 -> 

Sheet SFTP 150k NMOG+NOX Summary
A1: Example Template - Banking & Trading 150K Summary Table- SFTP NMOG+NOX
A2: Manufacturer: _______________________ | K2: Date:_______________
A4: Purpose and Scope of this Guidance Document
A5: This document was prepared by EPA's Office of Transportation and Air Quality (OTAQ). It is one of several intended to aid regulated parties in reporting Tier 3 and Cold NMHC Averaging, Banking and Trading (AB&T) information and calculating AB&T fleet average credits for light-duty vehicles and certain heavy-duty class 2b and 3 vehicles, ref. 40 CFR 86.1862-04(c). It contains EPA's recommended format for manufacturers to report to EPA their end-of-year Tier 3 AB&T calculations, credits and other information with respect to the implementation of the AB&T provisions of the EPA Tier 3 final rule (79 FR 23414, April 28, 2014) as amended (80 FR 9078, February 19, 2015; 80 FR 26463, May 8, 2015); ref. 40 CFR Parts 85, 86, 600, 1065, 1066. Use of this document is purely optional. This document does not in any way alter or waive the requirements in EPA regulations. Although the calculations and formulas provided in this document are intended to assist manufacturers in the implementation of EPA regulations, this document does not establish or change the legal rights or obligations of manufacturers or others in complying with EPA regulations, including 40 CFR 86.1862-04(c). If an error or other discrepancy is found in this document, including the calculation formulas, please contact your EPA certification team member or Dave Good at (734) 214-4450 or by email at good.david@epa.gov. The regulations take precedence.
A7: Select Model Year: | D7: 2019 | K7: OMB Control Number 2060-0104
A8: Select Type of Report: | D8: Final Model Year Report | K8: Expires 3-31-2020
A9: Select Program: | D9: 150k Useful Life
B10: Small Volume? | D10: No
D12: Fleet Average Compliance Level | G12: G. Credit (Debit) [Calc from D,E,F] | H12: Date Credits/ Debits were earned | I12: Date Credits will expire | J12: Last Date When Credits can be Traded | K12: Comments
A13: A. Date of Trans-action | B13: B. Model Year | C13: C. Category | D13: D. Applicable SFTP Standards | E13: E. Mfr SFTP Compliance Level | F13: F. Production Volume
D14: gram/mi | E14: gram/mi | F14: units | G14: gram/mi
A16: 2015 Early Credits:
A17: 2016-05-01 | B17: 2015 | C17: LDV/LDT/MDPV | D17: 0.14 | E17: 0.061 | F17: 11002 | G17: =astm((astm(D17,3)-(astm(E17,3)))*F17,0) -> 869 | H17: 2015-12-31 | I17: =DATE(YEAR(H17)+5,MONTH(H17),DAY(H17)) -> 2020-12-31 | J17: 2020-12-31 | K17: 2015 Early Tier 3 Credits earned per 40 CFR 86.1811-17(b)(11); see LDV/LDT1 and LDT2/HLDT/MDPV spreadsheets.
B18: 2015 | C18: Transfer | D18: - | E18: - | F18: - | H18: - | I18: - | J18: -
D19: Total 2015 Early Credits Remaining: | G19: =SUM(G17:G18) -> 869
A20: 2016 Early Credits:
A21: 2017-05-01 | B21: 2016 | C21: LDV/LDT/MDPV | D21: 0.11 | E21: 0.061 | F21: 22784 | G21: =astm((astm(D21,3)-(astm(E21,3)))*F21,0) -> 1116 | H21: 2016-12-31 | I21: =DATE(YEAR(H21)+5,MONTH(H21),DAY(H21)) -> 2021-12-31 | J21: 2021-12-31 | K21: 2016 Early Tier 3 Credits earned per 40 CFR 86.1811-17(b)(11); see LDV/LDT1 and LDT2/HLDT/MDPV spreadsheets.
B22: 2016 | C22: Transfer | D22: - | E22: - | F22: - | H22: - | I22: - | J22: -
D23: Total 2016 Early Credits Remaining: | G23: =SUM(G21:G22) -> 1116
A24: 2017 Early Credits:
A25: 2018-05-01 | B25: 2017 | C25: LDT2/HLDT/MDPV | D25: 0.103 | E25: 0.1 | F25: 1000 | G25: =astm((astm(D25,3)-(astm(E25,3)))*F25,0) -> 3 | H25: 2017-12-31 | I25: =DATE(YEAR(H25)+8,MONTH(H25),DAY(H25)) -> 2025-12-31 | J25: 2022-12-31 | K25: 2017 Early Tier 3 Credits earned per 40 CFR 86.1811-17(b)(11); see LDT2/HLDT/MDPV spreadsheet.
B26: 2017 | C26: Transfer | D26: - | E26: - | F26: - | H26: - | I26: - | J26: -
D27: Total 2017 Early Credits Remaining: | G27: =SUM(G25:G26) -> 3
C29: Total 2015-2017 Early Credits Remaining: | G29: =SUM(G19+G23+G27) -> 1988
A31: 2017 Credits:
A32: 2018-05-01 | B32: 2017 | C32: LDV/LDT/MDPV | D32: ='LDT2,HLDT,MDPV'!I11 -> 0.103 | E32: ='LDT2,HLDT,MDPV'!H11 ->  | F32: ='LDT2,HLDT,MDPV'!G11 -> 264243 | G32: =astm((astm(D32,3)-(astm(E32,3)))*F32,0) ->  | H32: 2017-12-31 | I32: =DATE(YEAR(H32)+8,MONTH(H32),DAY(H32)) -> 2025-12-31 | J32: 2022-12-31 | K32: LDV, LDT1 and LDT2 only. See 2017 LDV/LDT1 and LDT2/HLDT/MDPV spreadsheets.
A33: 2018-07-04 | B33: 2017 | C33: Transfer | D33: - | E33: - | F33: - | G33: -5000 | H33: 2017-12-31 | I33: - | J33: - | K33: Sold 5,000 2017 150K SFTP Credits to Manufacturer C (earned on 12/31/2017).
D34: Total 2017 Credits Remaining: | G34: =SUM(G32:G33) -> 
A36: 2018 Credits:
A37: 2019-05-01 | B37: 2018 | C37: LDV/LDT/MDPV | G37: =astm((astm(D37,3)-(astm(E37,3)))*F37,0) -> 0
B38: 2018 | C38: Transfer | D38: - | E38: - | F38: - | I38: - | J38: -
D39: Total 2018 Credits Remaining: | G39: =SUM(G37:G38) -> 0
A41: 2019 Credits:
A42: 2020-05-01 | B42: 2019 | C42: LDV/LDT/MDPV | G42: =astm((astm(D42,3)-(astm(E42,3)))*F42,0) -> 0
B43: 2019 | C43: Transfer | D43: - | E43: - | F43: - | I43: - | J43: -
D44: Total 2019 Credits Remaining: | G44: =SUM(G42:G43) -> 0
C46: Grand Total 2015-2019 Credits Remaining: | G46: =G29+G34+G39+G44 -> 

Sheet Sheet2 (hidden)
A1: 0 | C1: 120 | D1: 120 | E1: 2015 | G1: No | I1: 160 | J1: 160
A2: 0.01 | C2: 150 | D2: 150 | E2: 2016 | G2: Yes | I2: 125 | J2: 125
A3: 0.02 | D3: N/A | E3: 2017 | I3: 110 | J3: 70
A4: 0.03 | E4: 2018 | I4: 85 | J4: 50
A5: 0.04 | E5: 2019 | I5: 70 | J5: 30
A6: 0.05 | E6: 2020 | I6: 50 | J6: 20
A7: 0.06 | E7: 2021 | I7: FED SULEV30 | J7: 0
A8: 0.07 | E8: 2022 | I8: 30
A9: 0.08 | E9: 2023 | I9: 20
A10: 0.09 | E10: 2024 | I10: 0
A11: 0.1 | E11: 2025
A12: 0.11 | E12: 2026
A13: 0.12 | E13: 2027
A14: 0.13
A15: 0.14
A16: 0.15
A17: 0.16
A18: 0.17
A19: 0.18
A20: N/A
